Workbook

Sheet Contents
B3: Electricity Distribution Network Service Provider F-factor Reporting Template
B5: Table of contents
C8: Cover sheet | F8: 2. Fire start report
C12: 1. F-factor summary | F12: 3. Systems and Audit
C19: ="NOTE: This spreadsheet includes IRU targets up to and including FY"&'1. F-Factor summary'!J8 -> NOTE: This spreadsheet includes IRU targets up to and including FY2021/22

Sheet Cover
B8: Distribution Network Service Provider
B9: Fire start report
B11: This template is to be used by a DNSP to provide a fire start report to the AER in accordance with section 5 of the F-factor Order in Council.
B14: Colour coding of input sheets:
B15: Dark blue = AER headings
B16: Grey = AER instructions
B17: Yellow = Input cells
B18: Light orange = Automatically-generated cells
B20: Leave coloured cells blank if no information exists - PLEASE DO NOT ENTER TEXT unless specifically requested to do so.
B21: The cells and structure of the spreadsheet is locked to prevent inadvertent interference with the automated settings.
B22: All dollar amounts are to be unrounded, and in nominal terms.
B27: DNSP: | D27: AusNet Services
B29: DNSP - trading name:
B31: DNSP - Australian business number: | D31: 91 064 651 118
B33: Reporting year: | D33: 2021/22
B38: Business address | C38: Address | E38: Level 31, 2 Southbank Boulevard
C39: Suburb | E39: Southbank
D40: State | E40: Victoria | F40: Postcode | G40: 3006
B42: Postal address | C42: Address | E42: Locked Bag 14051 MCMC
C43: Suburb | E43: Melbourne
D44: State | E44: Victoria | F44: Postcode
B47: Contact name/s
B48: Contact phone/s
B49: Contact email address/s

Sheet 1. F-Factor summary
B1: =IF(Cover!D27="","[DNSP Name]", Cover!D27) -> AusNet Services | C1: IRU target: | D1: =IF(SUM(K2:O2)=0,"",SUM(K2:O2)) -> 164.3 | K1: AusNet Services | L1: CitiPower | M1: Jemena | N1: Powercor | O1: United Energy
B2: F-factor data reporting | C2: IRU amount: | D2: =IF(SUM('2. Individual fire start info'!S38:S1984)=0,"",SUM('2. Individual fire start info'!S38:S1984)) -> 145.66 | J2: current | K2: =IF(OR($B3="[Year]",$B1="[DNSP Name]",$B1<>K1),"",LOOKUP($B3,$J3:$J100,K3:K100)) -> 164.3 | L2: =IF(OR($B3="[Year]",$B1="[DNSP Name]",$B1<>L1),"",LOOKUP($B3,$J3:$J100,L3:L100)) -> 
B3: =IF(Cover!D33="","[Year]",Cover!D33) -> 2021/22 | C3: Revenue adjustment: | D3: =IF(OR(D1="",D2=""),"",15000*(D1-D2)) -> 279600 | J3: 2016/17 | K3: 247.7 | L3: 3.4 | M3: 9.7 | N3: 468 | O3: 22.3
J4: 2017/18 | K4: 247.7 | L4: 3.4 | M4: 9.7 | N4: 468 | O4: 22.3
B5: Table 2: Summary of total fire starts by F factor Order definition | J5: 2018/19 | K5: 247.7 | L5: 3.4 | M5: 9.7 | N5: 468 | O5: 22.3
B6: This is a summary of data in worksheet "2. Fire Start Report" | J6: 2019/20 | K6: 221.1 | L6: 3.4 | M6: 9.7 | N6: 412.8 | O6: 22.3
B7: Kind of Fire Start by definition of fire start under clause 5 of F-factor Order | C7: Total fires by cause | J7: 2020/21 | K7: 177.5 | L7: 1.3 | M7: 4.2 | N7: 277.6 | O7: 18.7
B8: Started in or originated from a distribution system | C8: =COUNTIF('2. Individual fire start info'!$N$38:$N$1984,'1. F-Factor summary'!$B8) -> 38 | J8: 2021/22 | K8: 164.3 | L8: 1.9 | M8: 3.7 | N8: 235.2 | O8: 19
B9: Started by any tree, or part of a tree, falling upon or coming into contact with a distribution system | C9: =COUNTIF('2. Individual fire start info'!$N$38:$N$1984,'1. F-Factor summary'!$B9) -> 19
B10: Started by any person, bird, reptile or other animal coming into contact with a distribution system | C10: =COUNTIF('2. Individual fire start info'!$N$38:$N$1984,'1. F-Factor summary'!$B10) -> 32
B11: Started by lightning striking a distribution system or a part of a distribution system | C11: =COUNTIF('2. Individual fire start info'!$N$38:$N$1984,'1. F-Factor summary'!$B11) -> 26
B12: Started by any other thing forming part of or coming into contact with a distribution system | C12: =COUNTIF('2. Individual fire start info'!$N$38:$N$1984,'1. F-Factor summary'!$B12) -> 7
B13: Otherwise started by a distribution system | C13: =COUNTIF('2. Individual fire start info'!$N$38:$N$1984,'1. F-Factor summary'!$B13) -> 63
B14: Total | C14: =SUM(C8:C13) -> 185

Sheet 2. Individual fire start info
B1: =IF(Cover!D27="","[DNSP Name]", Cover!D27) -> AusNet Services
B2: F-factor data reporting
B3: =IF(Cover!D33="","[Year]",Cover!D33) -> 2021/22
B6: Instructions:
B8: ="Enter into this worksheet fire start data, from any IT system, which have been recorded by "&IF(Cover!D27="","[DNSP Name]", Cover!D27)&". Note that fire starts must be in accordance with the definition of a fire start in the Order In Council." -> Enter into this worksheet fire start data, from any IT system, which have been recorded by AusNet Services. Note that fire starts must be in accordance with the definition of a fire start in the Order In Council.
B10: "Fire" should be interpreted using its common meaning and can be defined as a process in which substances combine chemically with oxygen from the air and typically give out bright light, heat and smoke. A fire should be recorded where there is evidence of smoking, charring, scorching, burning or any other evidence that a fire had occurred.
B12: =IF(Cover!D27="","[DNSP Name] must provide:", CONCATENATE(Cover!D27," must provide:")) -> AusNet Services must provide:
B14: Table 3 - Individual Fire Starts
B15: (1) Date - dd/mm/yyyy
B16: (2) Time - if known, the 24-hour time of the fire start hh:mm
B17: (3) Latitude and longitude of the fire start as decimal coordinates
B18: (4) Address of the property on which the incident occurred or closest to the incident
B19: (5) Asset number for the asset nearest the fire start
B20: =" (6) Feeder ID for the polyphase overhead line or underground cable nearest the fire start in the "&B1&" network" -> (6) Feeder ID for the polyphase overhead line or underground cable nearest the fire start in the AusNet Services network
B21: (7) Voltage on the line in which the fire start occurred (note: this may not be the nearest polyphase overhead line)
B22: (8) Network categorisation - CBD, Urban, Rural Long or Rural Short
B23: (9) Asset type of primary asset causing fire in accordance with OSIRIS asset categories
B24: (10) Where the asset involved in the fire is a transformer or an overhead or underground line, provide the phase, or phases, of the line or transformer
B25: (11) Kind of fire start in accordance with categories specified in Clause 5 of the F-factor Order-In-Council
B26: (12) Identify the location of the fire start in accordance with the categories specified in Clause 11(b) of the F-factor Order-In-Council
B27: (13) Provide the BOM fire danger rating applicable at the time of the fire start (data is available on the EM-COP website)
B28: =" (14) "&IF(Cover!D27="","[DNSP Name]", Cover!D27)&"'s record number for the incident" -> (14) AusNet Services's record number for the incident
B29: (15) ESV's OSIRIS reference number for the incident
B30: (16) Free text description of the fault containing relevant comments from field reports
B34: Table 2: Individual Fire Starts
B36: Number | C36: Fire starts | L36: Fire Type | O36: Risk Factors | S36: IRU amount | T36: Additional information
C37: Date 1 | D37: Time 2 | E37: Latitude 3 | F37: Longitude 3 | G37: Address of incident 4 | H37: ID of nearest asset 5 | I37: ID of nearest polyphase line 6 | J37: Voltage of line in which fire start occurred 7 | K37: Network categorisation 8 | L37: Type of primary asset involved in fire start 9 | M37: Phase(s) of line or transformer 10 | N37: Kind of fire start as per Clause 5 of F-factor Order-In-Council 11 | O37: Location area 12 | P37: Location multiplier | Q37: Fire danger rating 13 | R37: Danger multiplier | S37: Product of multipliers | T37: DNSP record number 14 | U37: OSIRIS (ESV) reference number 15 | V37: Fault description 16
A38: =COUNTA(C38:O38,Q38,T38:V38) -> 17 | B38: 1 | C38: 2021-07-04 | D38: 10:53 | E38: -37.33103505 | F38: 145.0112283 | G38: 45 Mathiesons Rd, Wandong VIC 3758, Australia | H38: 4702020 | I38: KMS12 | J38: 22kV AC | K38: RURAL SHORT | L38: - fuse (EDO fuse) | M38: single phase | N38: Otherwise started by a distribution system | O38: within area delineated on plan LEGL./16-354 | P38: =IF(O38="","",IF(O38="LBRA only",0.2,IF(O38="HBRA only",1,IF(O38="within electric line construction area",19.8,IF(O38="within area delineated on plan LEGL./16-354",4.6,""))))) -> 4.6 | Q38: No forecast | R38: =IF(Q38="","",IF(Q38="No forecast",0.1,IF(Q38="Low-moderate",0.2,IF(Q38="High",0.5,IF(Q38="Very high",1,IF(Q38="Severe",2,IF(Q38="Extreme",3.5,5))))))) -> 0.1 | S38: =IF(OR(P38="",R38=""),"",IF(AND(O38="within electric line construction area",Q38="No forecast"),1,P38*R38)) -> 0.46 | T38: E0078602 | U38: 20210706SPN_02 | V38: Crew attended and found a candled EDO fuse.. EDO fuse failed to eject and candled | Y38: Overhead conductors
A39: 17 | B39: 2 | C39: 2021-07-08 | D39: 23:46 | E39: -36.506342 | F39: 146.421555 | G39: 787 Milawa-Bobinawarrah Rd, Milawa VIC 3678, Australia | H39: 5101043 | I39: WN5 | J39: 22kV AC | K39: RURAL LONG | L39: - overhead conductor (bare; steel) | M39: three phase | N39: Started in or originated from a distribution system | O39: within area delineated on plan LEGL./16-354 | P39: 4.6 | Q39: No forecast | R39: 0.1 | S39: 0.46 | T39: E0078886 | U39: 20210709SPN_01 | V39: Live 22KV bare O/H fell to the ground due to a broken joint and started a 4 meter square ground fire.. HV conductor (3/12 steel) failed at connection point with PG clamp on t-off pole. Conductor fell to ground and remained alive. | Y39: - overhead conductor (bare; aluminium core steel reinforced)
A40: 17 | B40: 3 | C40: 2021-07-10 | D40: 16:51 | E40: -36.52635599 | F40: 146.472877 | G40: 845 Docker-Carboor Rd, Bobinawarrah VIC 3678, Australia | H40: 5110861 | I40: WN5 | J40: 22kV AC | K40: RURAL LONG | L40: - fuse (EDO fuse) | M40: single phase | N40: Otherwise started by a distribution system | O40: within area delineated on plan LEGL./16-354 | P40: 4.6 | Q40: No forecast | R40: 0.1 | S40: 0.46 | T40: E0078899 | U40: 20210712SPN_01 | V40: Crew found candled 5A EDO fuse.. EDO fuse failed to eject and candled. | Y40: - overhead conductor (bare; all aluminium conductor)
A41: 17 | B41: 4 | C41: 2021-07-12 | D41: 10:56 | E41: -38.13351898 | F41: 145.555882 | G41: 590 Seven Mile Rd, Nar Nar Goon VIC 3812, Australia | H41: 512802 | I41: PHM33 | J41: 22kV AC | K41: RURAL LONG | L41: - overhead conductor (bare; steel) | M41: single phase | N41: Otherwise started by a distribution system | O41: HBRA only | P41: 1 | Q41: No forecast | R41: 0.1 | S41: 0.1 | T41: E0078910 | U41: 20210712SPN_02 | V41: Crew found a candled BA fuse. No cause was found.. Fuse failed to eject and candled. | Y41: - overhead conductor (bare; copper)
A42: 17 | B42: 5 | C42: 2021-07-13 | D42: 10:55 | E42: -36.85647202 | F42: 145.52423 | G42: Bartons Ln, Creightons Creek VIC 3666, Australia | H42: 3902558 | I42: BN1 | J42: 22kV AC | K42: RURAL LONG | L42: - fuse (EDO fuse) | M42: three phase | N42: Otherwise started by a distribution system | O42: within area delineated on plan LEGL./16-354 | P42: 4.6 | Q42: No forecast | R42: 0.1 | S42: 0.46 | T42: E0078930 | U42: 20210713SPN_01 | V42: Crew attended and saw a candling fuse.. EDO fuse failed to eject and candled. | Y42: - overhead conductor (bare; steel)
A43: 17 | B43: 6 | C43: 2021-07-15 | D43: 18:34 | E43: -38.55141202 | F43: 145.676308 | G43: Korumburra-Wonthaggi Rd, Lance Creek VIC 3995, Australia | H43: 2804368 | I43: WGI34 | J43: 22kV AC | K43: RURAL LONG | L43: - fuse (EDO fuse) | M43: three phase | N43: Otherwise started by a distribution system | O43: within area delineated on plan LEGL./16-354 | P43: 4.6 | Q43: No forecast | R43: 0.1 | S43: 0.46 | T43: E0078959 | U43: 20210716SPN_02 | V43: Crew found 2 blown EDO fuses and 1 candled EDO fuse.. Crew patrolled the lines and found no cause. | Y43: - overhead conductor (ABC)
A44: 17 | B44: 7 | C44: 2021-07-15 | D44: 20:32 | E44: -36.45931901 | F44: 147.268977 | G44: 3964 Omeo Hwy, Eskdale VIC 3701, Australia | H44: 5210287 | I44: WOTS13 | J44: 22kV AC | K44: RURAL LONG | L44: - fuse (boric acid) | M44: three phase | N44: Started by lightning striking a distribution system or a part of a distribution system | O44: within area delineated on plan LEGL./16-354 | P44: 4.6 | Q44: No forecast | R44: 0.1 | S44: 0.46 | T44: E0078961 | U44: 20210716SPN_01 | V44: Crew found a candled that failed ti eject. Lightning caused the fuse to fail to eject and candel. | Y44: - overhead conductor (covered uninsulated)
A45: 17 | B45: 8 | C45: 2021-07-18 | D45: 7:30 | E45: -36.20362401 | F45: 148.024743 | G45: 451 Upper Murray Rd, Towong Upper VIC 3707, Australia | H45: 5216069 | I45: WOTS24 | J45: 22kV AC | K45: RURAL LONG | L45: - fuse (EDO fuse) | M45: three phase | N45: Otherwise started by a distribution system | O45: within area delineated on plan LEGL./16-354 | P45: 4.6 | Q45: No forecast | R45: 0.1 | S45: 0.46 | T45: E0078992 | U45: 20210719SPN_01 | V45: Crew found a candled EDO fuse.. EDO fuse failed to eject and candled. | Y45: - overhead conductor (insulated)
A46: 17 | B46: 9 | C46: 2021-07-20 | D46: 15:56 | E46: -37.77644 | F46: 145.28909 | G46: 36A Bonnie View Rd, Croydon North VIC 3136, Australia | H46: 1220731 | I46: RWTS-RWN-CPK | J46: 66kV AC | K46: #N/A | L46: - pole (wood) | M46: three phase | N46: Started in or originated from a distribution system | O46: LBRA only | P46: 0.2 | Q46: No forecast | R46: 0.1 | S46: 0.02 | T46: E0079047 | U46: 20210722SPN_01 | V46: Fire Brigade called in and stated there is a pole fire. No ground fire. Lis 1220731-66KV tracking through insulators into pole causing burning from inside.. Insulator breakdown causing tracking from the 66KV line to the timber pole. | Y46: Service lines
A47: 17 | B47: 10 | C47: 2021-07-24 | D47: 3:52 | E47: -37.47703299 | F47: 144.96234 | G47: 10 Whiteside St, Beveridge VIC 3753, Australia | H47: 931433 | I47: KLO24 | J47: Low voltage AC (<1kV) | K47: RURAL SHORT | L47: - connection box | M47: single phase | N47: Otherwise started by a distribution system | O47: within area delineated on plan LEGL./16-354 | P47: 4.6 | Q47: No forecast | R47: 0.1 | S47: 0.46 | T47: E0079099 | U47: 20210726SPN_02 | V47: Fire damage to FOLCB and wooden X-arm, no ground fire. . Hard to pinpoint exactly the cause of the fire due to the damage. An electrical breakdown is the most likley cause. | Y47: - overhead service conductor (residential)
A48: 17 | B48: 11 | C48: 2021-07-25 | D48: 12:26 | E48: -37.91374098 | F48: 145.343648 | G48: 60 McNicol Rd, Belgrave VIC 3160, Australia | H48: 1306790 | I48: BGE12 | J48: 22kV AC | K48: RURAL SHORT | L48: - overhead conductor (bare; all aluminium conductor) | M48: three phase | N48: Started by any tree, or part of a tree, falling upon or coming into contact with a distribution system | O48: LBRA only | P48: 0.2 | Q48: No forecast | R48: 0.1 | S48: 0.02 | T48: E0079100 | U48: 20210726SPN_03 | V48: A tree branch fell on HV lis 1306790 burn marks on tree branch which contacted HV and LV causing a confirmed HV Injection.. A tree branch contacting the HV and LV blue phase of the open wire cables | Y48: - overhead service conductor (commercial / industrial)
A49: 17 | B49: 12 | C49: 2021-07-25 | D49: 23:39 | E49: -37.95294108 | F49: 147.0701672 | G49: 137 Llowalong Rd, Stratford VIC 3862, Australia | H49: 2512152 | I49: MFA21 | J49: 22kV AC | K49: RURAL LONG | L49: - fuse (boric acid) | M49: single phase | N49: Otherwise started by a distribution system | O49: HBRA only | P49: 1 | Q49: No forecast | R49: 0.1 | S49: 0.1 | T49: E0079102 | U49: 20210726SPN_04 | V49: 22KV HV BA fuse failed to eject and candled.. BA HV fuse failed to eject and candled. | Y49: - overhead service conductor (subdivision / construction)
A50: 17 | B50: 13 | C50: 2021-07-27 | D50: 22:44 | E50: -37.90292299 | F50: 145.962147 | G50: 3270 Main Neerim Rd, Neerim Junction VIC 3832, Australia | H50: 2700341 | I50: WGL24 | J50: 22kV AC | K50: RURAL LONG | L50: - overhead conductor (bare; steel) | M50: single phase | N50: Started by any tree, or part of a tree, falling upon or coming into contact with a distribution system | O50: HBRA only | P50: 1 | Q50: No forecast | R50: 0.1 | S50: 0.1 | T50: E0079167 | U50: 20210728SPN_01 | V50: The crew advised. Pole 2700341 is at 45 deg angle, guy broken, caused by a large tree falling. Grass fire near assets quarter of an acre in size, CFA have extinguished the fire.. Mature Acacia dealbata, 21m H, DBH 450mm, has faulted in trunk, 4m from ground level in extreme wind event. The Wattle has fallen onto HV conductors, appx 20m from LIS 2700340. There were insignificant amounts of decay at point of failure, however the trunk would have been under extreme stress in the wind event. | Y50: - overhead service conductor (other)
A51: 17 | B51: 14 | C51: 2021-07-28 | D51: 0:33 | E51: -38.18392601 | F51: 146.494468 | G51: 244 Scrubby Ln, Traralgon VIC 3844, Australia | H51: 2606535 | I51: TGN11 | J51: 22kV AC | K51: RURAL SHORT | L51: - fuse (boric acid) | M51: three phase | N51: Started by any tree, or part of a tree, falling upon or coming into contact with a distribution system | O51: HBRA only | P51: 1 | Q51: No forecast | R51: 0.1 | S51: 0.1 | T51: E0079382 | U51: 20210811SPN_01 | V51: Crew arrived and found 1 blown, 1 hung up and 1 candled BA fuse at LIS 2606535. Fuses blew due to bark found on the lines.. Bark found on the lines caused all 3 BA fuses to blow. 1 fuse was hung up and the other candled. | Y51: - underground service cable (residential)
A52: 17 | B52: 15 | C52: 2021-07-28 | D52: 18:46 | E52: -37.712923 | F52: 145.088306 | G52: 56 Yerrawa Dr, Watsonia VIC 3087, Australia | H52: 903397 | I52: WT10 | J52: Low voltage AC (<1kV) | K52: URBAN | L52: - lamps (minor road) | M52: single phase | N52: Started in or originated from a distribution system | O52: LBRA only | P52: 0.2 | Q52: No forecast | R52: 0.1 | S52: 0.02 | T52: E0079252 | U52: 20210804SPN_02 | V52: Fire brigade reported street light globe burning crn Greensborough Hwy and Elder St. . Electrical breakdown of wiring and components caused the light head to catch fire. | Y52: - underground service cable (commercial / industrial)
A53: 17 | B53: 16 | C53: 2021-07-29 | D53: 11:6 | E53: -38.14140599 | F53: 145.501945 | G53: 125 Ellett Rd, Pakenham South VIC 3810, Australia | H53: 516259 | I53: PHM22 | J53: 22kV AC | K53: RURAL SHORT | L53: - overhead conductor (bare; aluminium core steel reinforced) | M53: single phase | N53: Started by any tree, or part of a tree, falling upon or coming into contact with a distribution system | O53: HBRA only | P53: 1 | Q53: No forecast | R53: 0.1 | S53: 0.1 | T53: E0079192 | U53: 20210730SPN_01 | V53: A Tree has fallen across HV between poles 516258 and 516259 and brought the conductors down. This caused a meter to catch fire the next day and 2 others on the circuit were damaged. This was after the LEI confirmed all safe to connect supply.. A large tree falling on the lines caused the HVI. The next day once the installation was loaded the meter caught fire. | Y53: - underground service cable (subdivision / construction)
A54: 17 | B54: 17 | C54: 2021-07-31 | D54: 1:1 | E54: -37.96291702 | F54: 145.348001 | G54: 8 Mountain Flat Rd, Narre Warren East VIC 3804, Australia | H54: 417998 | I54: BGE23 | J54: 22kV AC | K54: RURAL SHORT | L54: - overhead conductor (bare; aluminium core steel reinforced) | M54: single phase | N54: Started by any tree, or part of a tree, falling upon or coming into contact with a distribution system | O54: within area delineated on plan LEGL./16-354 | P54: 4.6 | Q54: No forecast | R54: 0.1 | S54: =IF(OR(P54="",R54=""),"",IF(AND(O54="within electric line construction area",Q54="No forecast"),1,P54*R54)) -> 0.46 | T54: E0079225 | U54: 20210803SPN_01 | V54: A fallen tree caused a O/H 22KV open wire to fall to the ground. The cable was live on the ground causing small burn marks on the ground. A HV BA fuse operated but the cable remained live as it was back fed from another transformer.. Shire EU was uprooted due to the ground being saturated from the abundance of rain lately, the tree looked very healthy with a healthy root plate. This brought the HV cable to the ground causing burn marks where the cable was. | Y54: - underground service cable (other)
A55: 17 | B55: 18 | C55: 2021-08-04 | D55: 2:29 | E55: -37.10880801 | F55: 146.363676 | G55: Cervinu Lodge, 23 Warrambat Rd, Sawmill Settlement VIC 3723, Australia | H55: 3915996 | I55: MJG11 | J55: 22kV AC | K55: RURAL SHORT | L55: - overhead conductor (bare; aluminium core steel reinforced) | M55: three phase | N55: Started by any tree, or part of a tree, falling upon or coming into contact with a distribution system | O55: HBRA only | P55: 1 | Q55: No forecast | R55: 0.1 | S55: 0.1 | T55: E0079249 | U55: 20210804SPN_01 | V55: A small failed tree fell onto 22KV and LV open wire O/H cables blowing 2 HV fuses, smoking from the trunk and catching fire at the top of the branches. No ground fire.. A small eucalyptus tree failed at the base roots and fell across HV and LV tree found smoking and small flame at tree top also melted Telstra cable plastic onto road | Y55: Underground cables
A56: 17 | B56: 19 | C56: 2021-08-23 | D56: 20:43 | E56: -37.74890499 | F56: 145.410804 | G56: 36 Boundary Rd, Wandin North VIC 3139, Australia | H56: 1009653 | I56: LDL23 | J56: 22kV AC | K56: RURAL LONG | L56: - fuse (boric acid) | M56: single phase | N56: Started by any person, bird, reptile or other animal coming into contact with a distribution system | O56: within area delineated on plan LEGL./16-354 | P56: 4.6 | Q56: No forecast | R56: 0.1 | S56: 0.46 | T56: E0079933 | U56: 20210824SPN_01 | V56: Crew found candled BA fuse. seems to have been caused by a possum.. A dead possum was found at the base of the pole that seems to of caused the fault. | Y56: - underground cable
A57: 17 | B57: 20 | C57: 2021-08-26 | D57: 23:59 | E57: -37.87954701 | F57: 145.430714 | G57: 48 Cavey Rd, Monbulk VIC 3793, Australia | H57: 1320990 | I57: BGE11 | J57: Low voltage AC (<1kV) | K57: RURAL SHORT | L57: - connection box | M57: three phase | N57: Started in or originated from a distribution system | O57: within area delineated on plan LEGL./16-354 | P57: 4.6 | Q57: No forecast | R57: 0.1 | S57: 0.46 | T57: E0079984 | U57: 20210830SPN_01 | V57: Emergency services reported a pole fire, crew dispatched and found a three phase FMB was damaged by fire/heat and burn marks on the ground 2m x 2m. 2 LV fuses blew. . Electrical failure of the FOLCB caused the fire and blew the 2 LV fuses. | Y57: - underground communications cable
A58: 17 | B58: 21 | C58: 2021-08-29 | D58: 16:22 | E58: -38.100839 | F58: 146.856681 | G58: 370 Sale-Toongabbie Rd, Nambrok VIC 3847, Australia | H58: 2509897 | I58: MFA22 | J58: 22kV AC | K58: RURAL LONG | L58: - fuse (EDO fuse) | M58: single phase | N58: Started by any person, bird, reptile or other animal coming into contact with a distribution system | O58: HBRA only | P58: 1 | Q58: No forecast | R58: 0.1 | S58: 0.1 | T58: E0080003 | U58: 20210830SPN_02 | V58: Crew found a burnt out 5A EDO @ LIS #2509897. Duck on the ground.. A duck caused the fuse ti blow and candle | Y58: Poles
A59: 17 | B59: 22 | C59: 2021-09-03 | D59: 0:13 | E59: -38.49347703 | F59: 145.281656 | G59: 385 Rhyll-Newhaven Rd, Rhyll VIC 3923, Australia | H59: 596512 | I59: PHI11 | J59: 22kV AC | K59: RURAL SHORT | L59: - overhead conductor (bare; aluminium core steel reinforced) | M59: three phase | N59: Otherwise started by a distribution system | O59: HBRA only | P59: 1 | Q59: No forecast | R59: 0.1 | S59: 0.1 | T59: E0080121 | U59: 20211014SPN_01 | V59: There was a grass fire in the vicinity of network assets, (pole). There was no cause found or any damage to the assets. It was suspected it may of been caused by tree bark, but no confirmation or evidence to ensure. CFA attended and extinguished the 15 meter square fire . No cause was found, suspected bark on lines but no confirmation or evidence. | Y59: - pole (concrete)
A60: 17 | B60: 23 | C60: 2021-09-03 | D60: 20:10 | E60: -38.11547798 | F60: 145.287665 | G60: 14 Cooper Ct, Cranbourne VIC 3977, Australia | H60: 507719 | I60: CRE33 | J60: Low voltage AC (<1kV) | K60: RURAL SHORT | L60: - lamps (minor road) | M60: three phase | N60: Started in or originated from a distribution system | O60: LBRA only | P60: 0.2 | Q60: No forecast | R60: 0.1 | S60: 0.02 | T60: E0080180 | U60: 20210908SPN_01 | V60: MFB reported x-arm on fire on pole #507719, crew dispatched and reported burnt out PE cell smoking. . An electrical breakdown of the PE cell caused it to catch fire. | Y60: - pole (steel)
A61: 17 | B61: 24 | C61: 2021-09-09 | D61: 12:48 | E61: -38.31761614 | F61: 146.1546049 | G61: McDonalds Track, Thorpdale South VIC 3824, Australia | H61: 2206924 | I61: MWTS-LGA3 | J61: 66kV AC | K61: #N/A | L61: - overhead conductor (bare; all aluminium conductor) | M61: three phase | N61: Started in or originated from a distribution system | O61: within area delineated on plan LEGL./16-354 | P61: 4.6 | Q61: No forecast | R61: 0.1 | S61: 0.46 | T61: E0080385 | U61: 20210910SPN_02 | V61: A 66kv conductor has broken its tie on its insulator in extreme winds, and has blown into a Pine tree appx 4.5m away. Signs of burning on a couple of branches of the Pine, and a small grass fire appx 75m2 in size on the roadside. . The conductor became dislodged from the insulator and the vibrations of the strong winds have worn the mechanical integrity of the tie causing the conductor to fall. | Y61: - pole (wood)
A62: 17 | B62: 25 | C62: 2021-09-11 | D62: 20:16 | E62: -36.32646 | F62: 146.35111 | G62: 12 Detour Rd, North Wangaratta VIC 3678, Australia | H62: 5103090 | I62: WN3 | J62: 22kV AC | K62: RURAL LONG | L62: - fuse (boric acid) | M62: three phase | N62: Started by any person, bird, reptile or other animal coming into contact with a distribution system | O62: within area delineated on plan LEGL./16-354 | P62: 4.6 | Q62: No forecast | R62: 0.1 | S62: 0.46 | T62: E0080404 | U62: 20210913SPN_01 | V62: A 22kv BA fuse was found burnt in half and candled. a dead Swan was found under the lines.. A swan contacting the conductors caused the fault. fuse failed to eject and candled causing dim lights to customer. | Y62: Crossarms
A63: 17 | B63: 26 | C63: 2021-09-12 | D63: 17:20 | E63: -37.99294711 | F63: 145.2821129 | G63: 1 Jaguar Cl, Narre Warren North VIC 3804, Australia | H63: 5698772 | I63: LYD11 | J63: Low voltage AC (<1kV) | K63: URBAN | L63: - smart meter | M63: three phase | N63: Started in or originated from a distribution system | O63: LBRA only | P63: 0.2 | Q63: No forecast | R63: 0.1 | S63: 0.02 | T63: E0080409 | U63: 20210913SPN_02 | V63: Meter caught fire at customers meter panel.. To much damage to conclude fault, suspected electrical breakdown. | Y63: - crossarm (wood)
A64: 17 | B64: 27 | C64: 2021-09-19 | D64: 8:0 | E64: -37.68318602 | F64: 145.000722 | G64: 3 Collins St, Thomastown VIC 3074, Australia | H64: 908361 | I64: TT6 | J64: 22kV AC | K64: URBAN | L64: - transformer (pole mounted) | M64: three phase | N64: Started in or originated from a distribution system | O64: LBRA only | P64: 0.2 | Q64: No forecast | R64: 0.1 | S64: 0.02 | T64: E0080749 | U64: 20210920SPN_01 | V64: GB054 CONTROL TRANSFORMER EXPLODED. OIL SPILL AND FIRE ON SWITCH, POLE AND CARAVAN WHICH WAS PARKED NEXT TO THE POLE. . The transformer failed and exploded. | Y64: - crossarm (steel)
A65: 17 | B65: 28 | C65: 2021-09-20 | D65: 18:24 | E65: -37.86395601 | F65: 145.29114 | G65: 1B Gwyn Cres, Boronia VIC 3155, Australia | H65: 1221604 | I65: BRA14 | J65: Low voltage AC (<1kV) | K65: URBAN | L65: - connector / termination | M65: three phase | N65: Started in or originated from a distribution system | O65: LBRA only | P65: 0.2 | Q65: No forecast | R65: 0.1 | S65: 0.02 | T65: E0080765 | U65: 20210921SPN_01 | V65: Fire brigade reported fire near assets, crew found red Phase IPC that connect transformer LV ABC to overhead open wire melted, fire was out before the crew arrived. No ground fire.. Electrical connection failure caused the IPC to overheat and catch fire. | Y65: - crossarm (other)
A66: 17 | B66: 29 | C66: 2021-09-29 | D66: 16:3 | E66: -38.0878191 | F66: 145.4322276 | G66: 285 Cardinia Rd, Officer South VIC 3809, Australia | H66: 501586 | I66: OFR22 | J66: 22kV AC | K66: RURAL SHORT | L66: - overhead conductor (bare; all aluminium conductor) | M66: three phase | N66: Started by any tree, or part of a tree, falling upon or coming into contact with a distribution system | O66: HBRA only | P66: 1 | Q66: No forecast | R66: 0.1 | S66: 0.1 | T66: E0080865 | U66: 20210930SPN_01 | V66: A tree branch fell and contacted the 22kv HV and LV conductors causing the tree branch to catch fire and blow 2X BA HV fuses. No ground fire. Large and healthy Eucalyptus sp. has shed a branch, appx 6-7 mts in length, during strong winds and heavy rain. | Y66: Overhead assets
A67: 17 | B67: 30 | C67: 2021-09-30 | D67: 8:9 | E67: -38.12322999 | F67: 145.945547 | G67: 54 Christies Rd, Lillico VIC 3820, Australia | H67: 2707562 | I67: WGL24 | J67: 22kV AC | K67: RURAL LONG | L67: - fuse (boric acid) | M67: three phase | N67: Started by any person, bird, reptile or other animal coming into contact with a distribution system | O67: HBRA only | P67: 1 | Q67: No forecast | R67: 0.1 | S67: 0.1 | T67: E0080897 | U67: 20210930SPN_02 | V67: A 22KV BA fuse was found candled. No ground fire. . There was a dead bird found at REICHBAUER P002 S/S which caused the fault but the fuse failed to eject and candled. | Y67: - capacity balancing units
A68: 17 | B68: 31 | C68: 2021-10-01 | D68: 6:23 | E68: -38.07090201 | F68: 146.0068 | G68: 40 Tara Ct, Buln Buln East VIC 3821, Australia | H68: 2706732 | I68: WGL24 | J68: 22kV AC | K68: RURAL LONG | L68: - fuse (boric acid) | M68: single phase | N68: Started in or originated from a distribution system | O68: HBRA only | P68: 1 | Q68: No forecast | R68: 0.1 | S68: 0.1 | T68: E0080917 | U68: 20211004SPN_02 | V68: Crew found a candled 22kv BA fuse. Pole stay was out of the ground and 1 inch away from the HV bushing.. A stay wire came out of the ground and contacted the HV bushing causing the fuse to operate and fail to eject. | Y68: - connector / termination
A69: 17 | B69: 32 | C69: 2021-10-01 | D69: 6:43 | E69: -38.02814599 | F69: 146.775905 | G69: 975 Grimmes Rd, Denison VIC 3858, Australia | H69: 1615649 | I69: MFA34 | J69: 22kV AC | K69: RURAL SHORT | L69: - fuse (EDO fuse) | M69: three phase | N69: Started by any person, bird, reptile or other animal coming into contact with a distribution system | O69: LBRA only | P69: 0.2 | Q69: Low-moderate | R69: 0.2 | S69: 0.04 | T69: E0080916 | U69: 20211004SPN_01 | V69: Crew arrived on site and found an EDO 22kv fuse had candled. Possible cause of the fault was a birds nest. A bird nest on a transformer caused the fault which candled the fuse once it failed to eject | Y69: - dropper / bridge
A70: 17 | B70: 33 | C70: 2021-10-02 | D70: 22:20 | E70: -37.7240011 | F70: 145.439522 | G70: Unnamed Road, Gruyere VIC 3770, Australia | H70: 1032817 | I70: LDL23 | J70: 12.7kV AC (SWER) | K70: RURAL LONG | L70: - fuse (boric acid) | M70: single wire earth return (SWER) | N70: Otherwise started by a distribution system | O70: within area delineated on plan LEGL./16-354 | P70: 4.6 | Q70: Low-moderate | R70: 0.2 | S70: 0.92 | T70: E0080923 | U70: 20211004SPN_03 | V70: Crew found candled fuse. It broke in half on removal.. There was no cause for the fault found, the fuse just failed to eject and candled. | Y70: - guy wire
A71: 17 | B71: 34 | C71: 2021-10-05 | D71: 3:42 | E71: -38.612129 | F71: 145.579775 | G71: 84 Hagelthorn St, Wonthaggi VIC 3995, Australia | H71: 2801831 | I71: WGI22 | J71: Low voltage AC (<1kV) | K71: RURAL SHORT | L71: - guy wire | M71: three phase | N71: Started in or originated from a distribution system | O71: LBRA only | P71: 0.2 | Q71: Low-moderate | R71: 0.2 | S71: 0.04 | T71: E0080978 | U71: 20211018SPN_03 | V71: stay wire was touching LV blue phase at pole 2801831, line burnt in the grass on arrival 1 foot long causing the LV fuse to blow., . A stay wire became loose contacting the LV blue phase conductor. | Y71: - insulator tie wires / connections
A72: 17 | B72: 35 | C72: 2021-10-09 | D72: 20:1 | E72: -37.41345401 | F72: 147.859702 | G72: 288 Sandy Creek Rd, Reedy Flat VIC 3895, Australia | H72: 1601911 | I72: BDL42 | J72: 22kV AC | K72: RURAL LONG | L72: - fuse (boric acid) | M72: single phase | N72: Otherwise started by a distribution system | O72: within electric line construction area | P72: 19.8 | Q72: Low-moderate | R72: 0.2 | S72: 3.96 | T72: E0081170 | U72: 20211011SPN_01 | V72: Crew found a candled 22KV fuse. No cause of a fault was found, all lines were clear. | Y72: - insulators
A73: 17 | B73: 36 | C73: 2021-10-12 | D73: 6:7 | E73: -37.611819 | F73: 145.215976 | G73: 130 Cottles Bridge-Strathewen Rd, Cottles Bridge VIC 3099, Australia | H73: 919919 | I73: DRN23 | J73: 22kV AC | K73: RURAL LONG | L73: - fuse (boric acid) | M73: single phase | N73: Otherwise started by a distribution system | O73: HBRA only | P73: 1 | Q73: Low-moderate | R73: 0.2 | S73: 0.2 | T73: E0081191 | U73: 20211012SPN_01 | V73: Crew attended site and found a damaged candled BA fuse. There was no cause found for the fault. The fuse candled and failed to eject. | Y73: - tower
A74: 17 | B74: 37 | C74: 2021-10-12 | D74: 10:30 | E74: -36.64897501 | F74: 146.165181 | G74: 183 Odea Rd, Molyullah VIC 3673, Australia | H74: 3905579 | I74: BN6 | J74: 22kV AC | K74: RURAL LONG | L74: - fuse (boric acid) | M74: single phase | N74: Started by lightning striking a distribution system or a part of a distribution system | O74: within area delineated on plan LEGL./16-354 | P74: 4.6 | Q74: Low-moderate | R74: 0.2 | S74: 0.92 | T74: E0081195 | U74: 20211012SPN_02 | V74: Crew found a candled BA fuse, The cause of the fault was lightning.. Lightning struck the 22kv conductor causing the BA fuse to candle and fail to eject. | Y74: - traction lines
A75: 17 | B75: 38 | C75: 2021-10-15 | D75: 5:58 | E75: -38.11718601 | F75: 145.462153 | G75: 315 Watson Rd, Pakenham VIC 3810, Australia | H75: 515997 | I75: PHM22 | J75: 22kV AC | K75: RURAL SHORT | L75: - fuse (boric acid) | M75: single phase | N75: Started by any person, bird, reptile or other animal coming into contact with a distribution system | O75: HBRA only | P75: 1 | Q75: Low-moderate | R75: 0.2 | S75: =IF(OR(P75="",R75=""),"",IF(AND(O75="within electric line construction area",Q75="No forecast"),1,P75*R75)) -> 0.2 | T75: E0081233 | U75: 20211015SPN_01 | V75: Crew reported 22KV BA fuse had candled. The fault was caused by a bird.. A bird caused the fault to blow the fuse, but the fuse failed to eject. | Y75: Underground assets
A76: =COUNTA(C76:O76,Q76,T76:V76) -> 17 | B76: 39 | C76: 2021-10-16 | D76: 21:59 | E76: -37.60606401 | F76: 145.299223 | G76: 260 Buttermans Track, St Andrews VIC 3761, Australia | H76: 920878 | I76: DRN23 | J76: 22kV AC | K76: RURAL LONG | L76: - fuse (boric acid) | M76: single phase | N76: Otherwise started by a distribution system | O76: HBRA only | P76: =IF(O76="","",IF(O76="LBRA only",0.2,IF(O76="HBRA only",1,IF(O76="within electric line construction area",19.8,IF(O76="within area delineated on plan LEGL./16-354",4.6,""))))) -> 1 | Q76: Low-moderate | R76: =IF(Q76="","",IF(Q76="No forecast",0.1,IF(Q76="Low-moderate",0.2,IF(Q76="High",0.5,IF(Q76="Very high",1,IF(Q76="Severe",2,IF(Q76="Extreme",3.5,5))))))) -> 0.2 | S76: 0.2 | T76: E0081576 | U76: 20211021SPN_01 | V76: Crew found a fuse had candled. No cause of the fault found.. The crew found no cause of the fault. BA fuse failed to eject and candled. | Y76: - LV pillar
A77: 17 | B77: 40 | C77: 2021-10-18 | D77: 8:29 | E77: -37.36432298 | F77: 145.5364961 | G77: 161 Myles Rd, Murrindindi VIC 3717, Australia | H77: 4711312 | I77: MDI1 | J77: 12.7kV AC (SWER) | K77: RURAL SHORT | L77: - fuse (EDO fuse) | M77: single wire earth return (SWER) | N77: Otherwise started by a distribution system | O77: within electric line construction area | P77: 19.8 | Q77: Low-moderate | R77: 0.2 | S77: 3.96 | T77: E0081335 | U77: 20211019SPN_01 | V77: Crew arrived on site and found a candled fuse. No cause for the fault was found.. There was no cause of the fault found. EDO fuse failed to eject and candled. | Y77: - services pit
A78: 17 | B78: 41 | C78: 2021-10-18 | D78: 20:24 | E78: -38.60579914 | F78: 145.5937097 | G78: 59-63 Graham St, Wonthaggi VIC 3995, Australia | H78: 5832211 | I78: WGI33 | J78: Low voltage AC (<1kV) | K78: RURAL SHORT | L78: - lamps (major road) | M78: single phase | N78: Otherwise started by a distribution system | O78: LBRA only | P78: 0.2 | Q78: Low-moderate | R78: 0.2 | S78: 0.04 | T78: E0081337 | U78: 20211019SPN_02 | V78: Crew arrived on site and found a 250W HPS street light on pole 5832211 had caught fire and blew a fuse on pole 2801606. . The light was to far damaged to enable the cause. | Y78: Transformers
A79: 17 | B79: 42 | C79: 2021-10-22 | D79: 8:16 | E79: -37.18265499 | F79: 145.03474 | G79: 265 Sugarloaf Creek Rd, Broadford VIC 3658, Australia | H79: 4720724 | I79: SMR23 | J79: 22kV AC | K79: RURAL SHORT | L79: - fuse (EDO fuse) | M79: three phase | N79: Otherwise started by a distribution system | O79: within area delineated on plan LEGL./16-354 | P79: 4.6 | Q79: Low-moderate | R79: 0.2 | S79: 0.92 | T79: E0081634 | U79: 20211025SPN_01 | V79: A fault caused all 3 22KV EDO fuses to blow and one of them candled. . The lines were checked and there was no cause for the fault found. 2 X EDO fuses blew and 1 failed to eject and candled. | Y79: - transformer (pole mounted)
A80: 17 | B80: 43 | C80: 2021-10-25 | D80: 12:44 | E80: -38.09207 | F80: 145.677227 | G80: 43 Main St, Garfield VIC 3814, Australia | H80: 514744 | I80: WGL12 | J80: 22kV AC | K80: RURAL LONG | L80: - fuse (boric acid) | M80: three phase | N80: Otherwise started by a distribution system | O80: LBRA only | P80: 0.2 | Q80: Low-moderate | R80: 0.2 | S80: 0.04 | T80: E0081662 | U80: 20211025SPN_02 | V80: Crew found 1 X blown BA fuse and 1 Candled BA fuse at Switch BW1214 (P#514744) causing small 1 meter squared ground fire. MFB have contained fire. . The crew found no cause of the fault. 1 X BA fuse had blown and 1 X BA fuse failed to eject and candled. | Y80: - transformer (kiosk mounted)
A81: 17 | B81: 44 | C81: 2021-10-28 | D81: 23:14 | E81: -36.53222702 | F81: 146.592369 | G81: 67 Boyds Ln, Whorouly VIC 3735, Australia | H81: 4500503 | I81: MYT12 | J81: 22kV AC | K81: RURAL LONG | L81: - fuse (EDO fuse) | M81: single phase | N81: Started by lightning striking a distribution system or a part of a distribution system | O81: within area delineated on plan LEGL./16-354 | P81: 4.6 | Q81: Low-moderate | R81: 0.2 | S81: 0.92 | T81: E0081806 | U81: 20211029SPN_01 | V81: Crew attended site and found 1 X HV fuse had blown and 1 HV fuse candled. Lightning strike caused the fault to blow 1 EDO fuse and the other failed to eject and candled. | Y81: - transformer (ground outdoor mounted)
A82: 17 | B82: 45 | C82: 2021-10-29 | D82: 11:57 | E82: -38.33036099 | F82: 146.426168 | G82: 27 Wongan Cres, Churchill VIC 3842, Australia | H82: 2614880 | I82: MWL16 | J82: 22kV AC | K82: RURAL SHORT | L82: - overhead conductor (bare; steel) | M82: three phase | N82: Started by any tree, or part of a tree, falling upon or coming into contact with a distribution system | O82: HBRA only | P82: 1 | Q82: Low-moderate | R82: 0.2 | S82: 0.2 | T82: E0081860 | U82: 20211101SPN_02 | V82: Crew attended to a report of line arcing, on arrival crew found a wire down arcing on the ground. Fire brigade was supervising the site and had to extinguish a small (Less than 5 x 5M) ground fire.. A tree contacted the 22KV O/H line causing it to break and drop to the ground during an extreme weather event. | Y82: - transformer (indoor chamber mounted)
A83: 17 | B83: 46 | C83: 2021-10-29 | D83: 14:5 | E83: -37.72474198 | F83: 145.763765 | G83: 5 Whitegum Dr, East Warburton VIC 3799, Australia | H83: 1408777 | I83: WYK13 | J83: 22kV AC | K83: RURAL SHORT | L83: - overhead conductor (ABC) | M83: three phase | N83: Started by any tree, or part of a tree, falling upon or coming into contact with a distribution system | O83: within area delineated on plan LEGL./16-354 | P83: 4.6 | Q83: Low-moderate | R83: 0.2 | S83: 0.92 | T83: E0081851 | U83: 20211029SPN_04 | V83: Small ornamental tree heavily covered by creeper has failed in ground and contacted HV conductors and HV bushings/connectors for HVABC. The contact has resulted in the vegetation igniting and the embers have fallen down the pole onto plastic covers and LIS tags which have in turn melted causing burning on the pole near the ground. There was no evidence of a ground fire . A Small ornamental tree heavily covered by creeper has failed in ground and contacted HV conductors and HV bushings/connectors for HVABC causing the ornamental to ignite. | Y83: - transformer (any other type)
A84: 17 | B84: 47 | C84: 2021-10-30 | D84: 7:38 | E84: -36.5355206 | F84: 145.8814407 | G84: 13 Braeside Ln, Tarnook VIC 3670, Australia | H84: 3920519 | I84: BN1 | J84: 12.7kV AC (SWER) | K84: RURAL LONG | L84: - fuse (boric acid) | M84: single wire earth return (SWER) | N84: Started by lightning striking a distribution system or a part of a distribution system | O84: within area delineated on plan LEGL./16-354 | P84: 4.6 | Q84: Low-moderate | R84: 0.2 | S84: 0.92 | T84: E0081867 | U84: 20211101SPN_03 | V84: Crew attended site and found a candled BA fuse, caused by lightning.. Lightning caused the fault operating the BA fuse and causing it to fail to eject and candel. | Y84: - measurement transformer (current transformer)
A85: 17 | B85: 48 | C85: 2021-10-30 | D85: 7:53 | E85: -37.90149734 | F85: 145.4514392 | G85: 6 Butterfield Rd, Emerald VIC 3782, Australia | H85: 1304886 | I85: BGE13 | J85: 22kV AC | K85: RURAL SHORT | L85: - fuse (boric acid) | M85: three phase | N85: Started by any tree, or part of a tree, falling upon or coming into contact with a distribution system | O85: within area delineated on plan LEGL./16-354 | P85: 4.6 | Q85: Low-moderate | R85: 0.2 | S85: 0.92 | T85: E0081925 | U85: 20211106SPN_04 | V85: TREE ON HV BETWEEN POLES 1304886 AND 1304887 causing a fuse to candle and 2 others to blow.. A fallen tree caused the fuses to operate. | Y85: - measurement transformer (voltage transformer)
A86: 17 | B86: 49 | C86: 2021-10-30 | D86: 11:33 | E86: -38.63319401 | F86: 146.108621 | G86: Buffalo North Rd, Stony Creek (East) VIC 3957, Australia | H86: 2024578 | I86: FTR21 | J86: 22kV AC | K86: RURAL LONG | L86: - fuse (boric acid) | M86: three phase | N86: Otherwise started by a distribution system | O86: HBRA only | P86: 1 | Q86: Low-moderate | R86: 0.2 | S86: 0.2 | T86: E0081870 | U86: 20211101SPN_05 | V86: Crew arrived on site and found 2 candled BA fuses.. The crews patrolled the lines and found no cause that would of initiated the fault. | Y86: - measurement transformer (capacitive voltage transformer)
A87: 17 | B87: 50 | C87: 2021-10-31 | D87: 15:51 | E87: -37.08709501 | F87: 145.590903 | G87: 263 Old Yarck Rd, Yarck VIC 3719, Australia | H87: 4710531 | I87: RUBA12 | J87: 22kV AC | K87: RURAL LONG | L87: - fuse (boric acid) | M87: single phase | N87: Started by lightning striking a distribution system or a part of a distribution system | O87: within area delineated on plan LEGL./16-354 | P87: 4.6 | Q87: Low-moderate | R87: 0.2 | S87: 0.92 | T87: E0081868 | U87: 20211101SPN_04 | V87: Crew attended site and found a candled BA fuse. Fault caused by lightning.. Lightning caused the fault blowing the BA fuse and causing it to candle. | Y87: Fuses and switchgear
A88: 17 | B88: 51 | C88: 2021-11-01 | D88: 10:27 | E88: -37.31234883 | F88: 145.4723947 | G88: 117 Nashs Rd, Murrindindi VIC 3717, Australia | H88: 4717320 | I88: SMR14 | J88: 12.7kV AC (SWER) | K88: RURAL LONG | L88: - fuse (boric acid) | M88: single wire earth return (SWER) | N88: Started by lightning striking a distribution system or a part of a distribution system | O88: within electric line construction area | P88: 19.8 | Q88: Low-moderate | R88: 0.2 | S88: 3.96 | T88: E0081872 | U88: 20211101SPN_06 | V88: Crew found a candled SWER BA fuse hit by lightning.. Lightening struck the BA fuse causing the fault. The fuse then failed to eject and candled. | Y88: - fuse (boric acid)
A89: 17 | B89: 52 | C89: 2021-11-01 | D89: 19:40 | E89: -37.85236002 | F89: 145.424266 | G89: 4 Wiseman Rd, Monbulk VIC 3793, Australia | H89: 1012796 | I89: LDL13 | J89: 22kV AC | K89: RURAL SHORT | L89: - fuse (boric acid) | M89: three phase | N89: Otherwise started by a distribution system | O89: within area delineated on plan LEGL./16-354 | P89: 4.6 | Q89: Low-moderate | R89: 0.2 | S89: 0.92 | T89: E0081881 | U89: 20211103SPN_01 | V89: Crew attended a fault at night and found 2 blown BA fuses and 1 candled 22KV BA fuse causing a 2m X 1m ground fire. The night crew patrolled the lines and found no cause of the fault.. Night patrol found no cause for the fault | Y89: - fuse (EDO fuse)
A90: 17 | B90: 53 | C90: 2021-11-02 | D90: 9:31 | E90: -37.93487398 | F90: 145.599341 | G90: Black Snake Creek, Gembrook VIC 3783, Australia | H90: 417099 | I90: OFR23 | J90: 22kV AC | K90: RURAL LONG | L90: - overhead conductor (bare; steel) | M90: single phase | N90: Started by any tree, or part of a tree, falling upon or coming into contact with a distribution system | O90: HBRA only | P90: 1 | Q90: Low-moderate | R90: 0.2 | S90: 0.2 | T90: E0081896 | U90: 20211104SPN_01 | V90: A Tree fell on 22KV HV open wire at LIS 417099 and caught fire. A small 2 meter ground fire occurred. . Windthrow occurred in strong winds when a gum tree in the Bunyip State Forest landed on HV conductors and caught fire. In a Windthrow situation where uplift of the root plate occurs when a trees anchorage in the ground fails due to strong winds (falling without fracturing). In these circumstances it is the soil that begins to fail first. The forest stand adjacent the HV conductors contains a mixed species of gum trees with the tallest measuring approximately 35m high. This area is prone to windthrow tree failures, predominately during storm events. | Y90: - fuse (Fault Tamer)
A91: 17 | B91: 54 | C91: 2021-11-03 | D91: 17:7 | E91: -38.43041201 | F91: 145.637993 | G91: 10 Michie Rd, Krowera VIC 3945, Australia | H91: 2004836 | I91: LGA23 | J91: 22kV AC | K91: RURAL LONG | L91: - fuse (boric acid) | M91: three phase | N91: Otherwise started by a distribution system | O91: HBRA only | P91: 1 | Q91: Low-moderate | R91: 0.2 | S91: 0.2 | T91: E0081909 | U91: 20211104SPN_04 | V91: Crew attended site and found a candled BA fuse that failed to eject. . No cause found for the fault, the fuse failed to eject and candled. | Y91: - fuse (powder filled)
A92: 17 | B92: 55 | C92: 2021-11-04 | D92: 10:58 | E92: -36.195745 | F92: 147.306317 | G92: 8208 Murray Valley Hwy, Bullioh VIC 3700, Australia | H92: 5211740 | I92: WOTS24 | J92: 22kV AC | K92: RURAL LONG | L92: - fuse (EDO fuse) | M92: single phase | N92: Otherwise started by a distribution system | O92: within area delineated on plan LEGL./16-354 | P92: 4.6 | Q92: Low-moderate | R92: 0.2 | S92: 0.92 | T92: E0081924 | U92: 20211106SPN_03 | V92: Crew found a candled 22KV EDO fuse. No ground fire.. EDO fuse candled and failed to eject. No cause of the fault was found. Degradation of the fuse was a major contribution of the eject failure. | Y92: - fuse (any other type)
A93: 17 | B93: 56 | C93: 2021-11-04 | D93: 18:38 | E93: -38.47523002 | F93: 146.737166 | G93: 181 Napier Rd, Won Wron VIC 3971, Australia | H93: 2028167 | I93: FTR12 | J93: 22kV AC | K93: RURAL LONG | L93: - fuse (boric acid) | M93: single phase | N93: Otherwise started by a distribution system | O93: HBRA only | P93: 1 | Q93: Low-moderate | R93: 0.2 | S93: 0.2 | T93: E0081995 | U93: 20211108SPN_02 | V93: Crew attended site and found a candled fuse and a blown LA due to storm.. During a wild storm event a BA fuse candled and failed to eject. There was no ground fire or cause of the fault found. | Y93: - circuit breaker
A94: 17 | B94: 57 | C94: 2021-11-06 | D94: 2:30 | E94: -38.351829 | F94: 146.361449 | G94: Middle Creek Rd, Yinnar South VIC 3869, Australia | H94: 2615055 | I94: MWL25 | J94: 22kV AC | K94: RURAL SHORT | L94: - fuse (boric acid) | M94: single phase | N94: Otherwise started by a distribution system | O94: HBRA only | P94: 1 | Q94: Low-moderate | R94: 0.2 | S94: 0.2 | T94: E0081996 | U94: 20211108SPN_03 | V94: Crew found a candled BA fuse. The cause of the fault was not found, BA fuse failed to eject and candled. | Y94: - switch (disconnector/isolator)
A95: 17 | B95: 58 | C95: 2021-11-10 | D95: 6:13 | E95: -36.05346399 | F95: 146.664929 | G95: 2380 Murray Valley Hwy, Barnawartha VIC 3688, Australia | H95: 5206959 | I95: BWA23 | J95: 22kV AC | K95: RURAL SHORT | L95: - fuse (EDO fuse) | M95: three phase | N95: Started by any other thing forming part of or coming into contact with a distribution system | O95: within area delineated on plan LEGL./16-354 | P95: 4.6 | Q95: Low-moderate | R95: 0.2 | S95: 0.92 | T95: E0082031 | U95: 20211112SPN_01 | V95: Crew arrived on site and found a candled fuse that failed to eject. Car hit pole 1314761. No ground fire. . A car hit the pole causing the fuse to candle and fail to eject. | Y95: - switch (earth)
A96: 17 | B96: 59 | C96: 2021-11-11 | D96: 12:55 | E96: -38.48163102 | F96: 145.928871 | G96: 137 Gibson St, Leongatha VIC 3953, Australia | H96: 2003533 | I96: LGA23 | J96: 22kV AC | K96: RURAL LONG | L96: - fuse (boric acid) | M96: three phase | N96: Started by any person, bird, reptile or other animal coming into contact with a distribution system | O96: HBRA only | P96: 1 | Q96: Low-moderate | R96: 0.2 | S96: 0.2 | T96: E0082048 | U96: 20211112SPN_02 | V96: Crew arrived on site and found 1 blown fuse and 1 candled BA fuse. The fault was caused by a bird.. A bird contacted the lines causing the fault causing the BA fuses to fail to eject and candled. | Y96: - switch (FuseSaver)
A97: 17 | B97: 60 | C97: 2021-11-11 | D97: 17:35 | E97: -36.54509169 | F97: 145.8602093 | G97: 598 Tarnook Rd, Tarnook VIC 3670, Australia | H97: 3912343 | I97: BN1 | J97: 12.7kV AC (SWER) | K97: RURAL LONG | L97: - fuse (boric acid) | M97: single wire earth return (SWER) | N97: Started by any person, bird, reptile or other animal coming into contact with a distribution system | O97: within area delineated on plan LEGL./16-354 | P97: 4.6 | Q97: Low-moderate | R97: 0.2 | S97: 0.92 | T97: E0082056 | U97: 20211112SPN_04 | V97: Crew attended site and found a candled BA fuse. The fault was caused by a possum.. A possum caused the fault that operated the fuse which failed to eject and candled. | Y97: - switch (any other type)
A98: 17 | B98: 61 | C98: 2021-11-13 | D98: 5:2 | E98: -38.10995101 | F98: 145.715176 | G98: 64-65 Miles Rd, Bunyip VIC 3815, Australia | H98: 511795 | I98: WGL12 | J98: 22kV AC | K98: RURAL LONG | L98: - fuse (EDO fuse) | M98: three phase | N98: Otherwise started by a distribution system | O98: HBRA only | P98: 1 | Q98: Low-moderate | R98: 0.2 | S98: 0.2 | T98: E0082088 | U98: 20211117SPN_01 | V98: Crew attended site and found a candled EDO fuse that failed to eject.. Crew patrolled the lines and found no cause of the fault. EDO fuse failed to eject. | Y98: SCADA, network control and protection systems
A99: 17 | B99: 62 | C99: 2021-11-14 | D99: 15:19 | E99: -37.214887 | F99: 145.004911 | G99: Broadford Motor Trimmers, Broadford VIC 3658, Australia | H99: 4720581 | I99: KMS11 | J99: 22kV AC | K99: RURAL LONG | L99: - fuse (boric acid) | M99: single phase | N99: Started by any person, bird, reptile or other animal coming into contact with a distribution system | O99: within area delineated on plan LEGL./16-354 | P99: 4.6 | Q99: Low-moderate | R99: 0.2 | S99: 0.92 | T99: E0082095 | U99: 20211117SPN_02 | V99: Crew found a candled BA fuse. The fault was deemed to be caused by a magpie as there was residue of a magpie around the site.. As there was residue of a magpie around the site, this was deemed the cause of the fault that operated the fuse that failed to eject and candled. | Y99: - audio frequency load controller (AFLC)
A100: 17 | B100: 63 | C100: 2021-11-15 | D100: 6:25 | E100: -37.76143998 | F100: 147.836552 | G100: 275 Baines Rd, Tambo Upper VIC 3885, Australia | H100: 1614431 | I100: BDL41 | J100: 22kV AC | K100: RURAL LONG | L100: - fuse (EDO fuse) | M100: single phase | N100: Started by any person, bird, reptile or other animal coming into contact with a distribution system | O100: within area delineated on plan LEGL./16-354 | P100: 4.6 | Q100: Low-moderate | R100: 0.2 | S100: 0.92 | T100: E0082100 | U100: 20211117SPN_03 | V100: Crew found a candled fuse, the fault was caused by a magpie.. A magpie caused the fault that candled the fuse that failed to eject. | Y100: - arc suppresion coil
A101: 17 | B101: 64 | C101: 2021-11-16 | D101: 5:56 | E101: -38.263992 | F101: 146.746531 | G101: 559 Gormandale-Stradbroke Rd, Hiamdale VIC 3847, Australia | H101: 2607845 | I101: TGN41 | J101: 22kV AC | K101: RURAL LONG | L101: - fuse (EDO fuse) | M101: single phase | N101: Otherwise started by a distribution system | O101: HBRA only | P101: 1 | Q101: Low-moderate | R101: 0.2 | S101: 0.2 | T101: E0082117 | U101: 20211118SPN_02 | V101: Crew attended and found a candled EDO fuse that failed to eject. No ground fire.. EDO fuse failed to eject and candled. There was no cause of the fault found. | Y101: - automatic circuit recloser (ACR)
A102: 17 | B102: 65 | C102: 2021-11-16 | D102: 14:23 | E102: -37.88104943 | F102: 145.2724617 | G102: 791 Burwood Hwy Service Rd, Ferntree Gully VIC 3156, Australia | H102: 1312339 | I102: BRA33 | J102: Low voltage AC (<1kV) | K102: URBAN | L102: - luminaires (major road) | M102: single phase | N102: Started in or originated from a distribution system | O102: LBRA only | P102: 0.2 | Q102: Low-moderate | R102: 0.2 | S102: 0.04 | T102: E0082368 | U102: 20211119SPN_04 | V102: A 150W HPS street light had caught fire.. Electrical breakdown of component in light fitting. | Y102: - communications linear assets
A103: 17 | B103: 66 | C103: 2021-11-25 | D103: 0:24 | E103: -38.51618902 | F103: 145.713527 | G103: 3 Kongwak-Inverloch Rd, Kongwak VIC 3951, Australia | H103: 2804135 | I103: WGI34 | J103: 22kV AC | K103: RURAL LONG | L103: - fuse (boric acid) | M103: three phase | N103: Otherwise started by a distribution system | O103: within area delineated on plan LEGL./16-354 | P103: 4.6 | Q103: Low-moderate | R103: 0.2 | S103: 0.92 | T103: E0082482 | U103: 20211129SPN_01 | V103: Crew attended site and found a candled BA fuse. No ground fire.. Fuse candled and failed to eject. No cause of the fault was found. | Y103: - communications network assets
A104: 17 | B104: 67 | C104: 2021-11-25 | D104: 10:9 | E104: -38.03018399 | F104: 145.451323 | G104: 351 Thewlis Rd, Pakenham VIC 3810, Australia | H104: 501263 | I104: OFR23 | J104: 22kV AC | K104: RURAL LONG | L104: - fuse (boric acid) | M104: single phase | N104: Started by any person, bird, reptile or other animal coming into contact with a distribution system | O104: HBRA only | P104: 1 | Q104: Low-moderate | R104: 0.2 | S104: 0.2 | T104: E0082491 | U104: 20211129SPN_04 | V104: Crew arrived on site and found a candled BA fuse. The fault was caused by a possum.. A possum caused the fault, but the BA fuse failed to eject and candled | Y104: - communications site infrastructure
A105: 17 | B105: 68 | C105: 2021-11-28 | D105: 15:27 | E105: -38.3653083 | F105: 146.2096864 | G105: 40 Le Bruns Rd, Darlimurla VIC 3871, Australia | H105: 2021838 | I105: LGA11 | J105: 12.7kV AC (SWER) | K105: RURAL LONG | L105: - overhead conductor (bare; steel) | M105: single wire earth return (SWER) | N105: Started by any tree, or part of a tree, falling upon or coming into contact with a distribution system | O105: HBRA only | P105: 1 | Q105: Low-moderate | R105: 0.2 | S105: 0.2 | T105: E0082517 | U105: 20211129SPN_02 | V105: A FIRE WAS CAUSED BY A TREE RESTING ON SWER CONDUCTOR, NO GRASS FIRE, JUST TREE BRANCH. SWER HV WAS ON THE DECK, PROTECTION OPERATED. . A tree had fallen onto the O/H SWER conductor causing the tree to burn where it contacted the line and the line fell to the ground. | Y105: - field devices
A106: 17 | B106: 69 | C106: 2021-11-30 | D106: 15:33 | E106: -37.85812977 | F106: 145.2158511 | G106: 20 Wondalea Cres, Wantirna VIC 3152, Australia | H106: 1031552 | I106: RWT25 | J106: Low voltage AC (<1kV) | K106: URBAN | L106: - LV pillar | M106: three phase | N106: Started in or originated from a distribution system | O106: LBRA only | P106: 0.2 | Q106: Low-moderate | R106: 0.2 | S106: 0.04 | T106: E0082564 | U106: 20211201SPN_01 | V106: A Paralleling pillar caught fire. Crew were dispatched to make the site safe. There were 2 blown LV fuses.. An electrical breakdown within the pillar caused the fire. | Y106: - local network wiring assets
A107: 17 | B107: 70 | C107: 2021-11-30 | D107: 20:19 | E107: -37.98162237 | F107: 145.2882167 | G107: 70 Fontaine Terrace, Narre Warren North VIC 3804, Australia | H107: 5813129 | I107: LYD14 | J107: 22kV AC | K107: RURAL SHORT | L107: - transformer (kiosk mounted) | M107: three phase | N107: Started in or originated from a distribution system | O107: LBRA only | P107: 0.2 | Q107: Low-moderate | R107: 0.2 | S107: =IF(OR(P107="",R107=""),"",IF(AND(O107="within electric line construction area",Q107="No forecast"),1,P107*R107)) -> 0.04 | T107: E0082568 | U107: 20211201SPN_02 | V107: Kiosk substation, fontaine monroe, HV switchgear failed causing a small grass fire and damaging the U/G HV cables.. Electrical breakdown of the HV switch caused the fire. | Y107: - master station assets
A108: 17 | B108: 71 | C108: 2021-12-02 | D108: 19:6 | E108: -37.769312 | F108: 145.194257 | G108: 5 Pambara Ct, Donvale VIC 3111, Australia | H108: 1205558 | I108: RWN26 | J108: 22kV AC | K108: RURAL SHORT | L108: - transformer (pole mounted) | M108: three phase | N108: Started by lightning striking a distribution system or a part of a distribution system | O108: within area delineated on plan LEGL./16-354 | P108: 4.6 | Q108: Low-moderate | R108: 0.2 | S108: 0.92 | T108: E0083494 | U108: 20220117SPN_02 | V108: Customer reported SES and MFB attended for a fire at Tx PAMBARA REYNOLDS 1. 2 BA fuses blew, No ground fire. . Lightning strike at the transformer caused the fault and fire. | Y108: - neutral earthing resistor
A109: 17 | B109: 72 | C109: 2021-12-02 | D109: 20:10 | E109: -37.76646799 | F109: 145.24982 | G109: 86 Brysons Rd, Warrandyte South VIC 3134, Australia | H109: 1207319 | I109: RWN31 | J109: 22kV AC | K109: RURAL SHORT | L109: - fuse (boric acid) | M109: three phase | N109: Started by any tree, or part of a tree, falling upon or coming into contact with a distribution system | O109: within area delineated on plan LEGL./16-354 | P109: 4.6 | Q109: Low-moderate | R109: 0.2 | S109: 0.92 | T109: E0082851 | U109: 20211208SPN_02 | V109: RW032 CHP blown BA fuse that had candled. Tree fell on the HV and LV lines between LIS 1207342 - LIS 1207343, **NO HVI*** . A tree fell onto the HV and LV conductors causing the fault that caused the BA fuse to candle and failed to eject. | Y109: - oil-filled circuit recloser (OCR)
A110: 17 | B110: 73 | C110: 2021-12-02 | D110: 21:13 | E110: -37.771964 | F110: 145.326239 | G110: 3 Coolaroo Ct, Mooroolbark VIC 3138, Australia | H110: 1012640 | I110: CPK13 | J110: Low voltage AC (<1kV) | K110: URBAN | L110: - connection box | M110: three phase | N110: Started by lightning striking a distribution system or a part of a distribution system | O110: LBRA only | P110: 0.2 | Q110: Low-moderate | R110: 0.2 | S110: 0.04 | T110: E0083491 | U110: 20220114SPN_01 | V110: A FOLCB on a pole was hit by lightening and caught fire operating 2 HV fuses and damaging the U/G cable at the FOLCB.. Lightning hit the FOLCB on the pole causing the fire, operating 2 HV BA fuses. | Y110: - rapid earth fault current limiter (REFCL)
A111: 17 | B111: 74 | C111: 2021-12-06 | D111: 5:54 | E111: -38.25837901 | F111: 146.548299 | G111: 720 Traralgon Creek Rd, Traralgon South VIC 3844, Australia | H111: 2605169 | I111: TGN23 | J111: 22kV AC | K111: RURAL SHORT | L111: - fuse (boric acid) | M111: three phase | N111: Started by any tree, or part of a tree, falling upon or coming into contact with a distribution system | O111: HBRA only | P111: 1 | Q111: Low-moderate | R111: 0.2 | S111: 0.2 | T111: E0082804 | U111: 20211207SPN_02 | V111: Crew arrived on site and found a candled fuse, Broken Disc and damaged Make off, broken dropper line side of the fuse. Bark was the cause of the fault.. Flying bark or branch debris caused the disc and dropper to fail candling the fuse. | Y111: - surge diverter
A112: 17 | B112: 75 | C112: 2021-12-06 | D112: 6:22 | E112: -37.37521199 | F112: 144.968203 | G112: 1950 Old Sydney Rd, Wallan VIC 3756, Australia | H112: 4700633 | I112: KMS12 | J112: 22kV AC | K112: RURAL SHORT | L112: - fuse (boric acid) | M112: three phase | N112: Started by lightning striking a distribution system or a part of a distribution system | O112: within area delineated on plan LEGL./16-354 | P112: 4.6 | Q112: Low-moderate | R112: 0.2 | S112: 0.92 | T112: E0082797 | U112: 20211207SPN_01 | V112: Crew attended site and found a candled fuse that failed to eject. Lightening is the Possible cause of the fault. No ground fire.. There was no other cause that could be found other then lightening. | Y112: - voltage regulator
A113: 17 | B113: 76 | C113: 2021-12-06 | D113: 16:46 | E113: -38.56108798 | F113: 145.54796 | G113: 25 Dalyston-Glen Forbes Rd, Dalyston VIC 3992, Australia | H113: 2812808 | I113: WGI23 | J113: 22kV AC | K113: RURAL SHORT | L113: - switch (any other type) | M113: three phase | N113: Started by lightning striking a distribution system or a part of a distribution system | O113: LBRA only | P113: 0.2 | Q113: Low-moderate | R113: 0.2 | S113: 0.04 | T113: E0082829 | U113: 20211207SPN_03 | V113: At pole 2812808, HV switch was hit by lightning. The HV switch burst into flames as the gas leaked out. there was no ground fire.. Lightening hit the gas switch causing it to burst into flames from leaking gas. | Y113: Public lighting
A114: 17 | B114: 77 | C114: 2021-12-06 | D114: 18:12 | E114: -38.36022101 | F114: 146.104921 | G114: 3350 Grand Ridge Rd, Mirboo North VIC 3871, Australia | H114: 2002566 | I114: LGA11 | J114: 22kV AC | K114: RURAL LONG | L114: - fuse (boric acid) | M114: three phase | N114: Otherwise started by a distribution system | O114: HBRA only | P114: 1 | Q114: Low-moderate | R114: 0.2 | S114: 0.2 | T114: E0082839 | U114: 20211208SPN_01 | V114: Crew patrolled the lines and found a pole mounted sub had blown at pole 2002637 and a candled fuse that failed to eject on 22KV pole 2002566.. The crew patrolled the lines and could not find any cause for the incident. | Y114: - brackets (major road)
A115: 17 | B115: 78 | C115: 2021-12-09 | D115: 21:19 | E115: -37.75740399 | F115: 145.356861 | G115: 356-406 Main St, Lilydale VIC 3140, Australia | H115: 1005668 | I115: LDL22 | J115: Low voltage AC (<1kV) | K115: URBAN | L115: - connection box | M115: single phase | N115: Started in or originated from a distribution system | O115: LBRA only | P115: 0.2 | Q115: Low-moderate | R115: 0.2 | S115: 0.04 | T115: E0082892 | U115: 20211210SPN_01 | V115: A LV krone box on the pole supplying KFC caught fire.. Electrical breakdown of the Krone box caused the fire. | Y115: - brackets (minor road)
A116: 17 | B116: 79 | C116: 2021-12-10 | D116: 6:19 | E116: -38.52580098 | F116: 146.598284 | G116: 565 Bolgers Rd, Devon North VIC 3971, Australia | H116: 2624660 | I116: FTR12 | J116: 22kV AC | K116: RURAL LONG | L116: - fuse (boric acid) | M116: three phase | N116: Started by any person, bird, reptile or other animal coming into contact with a distribution system | O116: HBRA only | P116: 1 | Q116: Low-moderate | R116: 0.2 | S116: 0.2 | T116: E0082902 | U116: 20211213SPN_01 | V116: Analytics suspected HV BA Fuse has candled. Crew attended site and found fuse had candled. cause of the fault is suspected to be an animal. there was no animal proofing on the pole. this has now had a NOTI raised. no other damage or ground fires. . It is suspected that an animal caused the fault as there was no other evidence of anything else. | Y116: - lamps (major road)
A117: 17 | B117: 80 | C117: 2021-12-11 | D117: 7:34 | E117: -36.35449602 | F117: 147.057545 | G117: 1116 Gundowring Rd, Gundowring VIC 3691, Australia | H117: 5200180 | I117: WOTS11 | J117: 22kV AC | K117: RURAL LONG | L117: - fuse (EDO fuse) | M117: three phase | N117: Started by any person, bird, reptile or other animal coming into contact with a distribution system | O117: within area delineated on plan LEGL./16-354 | P117: 4.6 | Q117: Low-moderate | R117: 0.2 | S117: 0.92 | T117: E0082904 | U117: 20211213SPN_02 | V117: At LIS 5200180 - candled HV EDO fuse was found. Dead magpie was on top of the transformer.. A magpie caused the fault contacting HV on top of the transformer, fuse failed to eject and candled. | Y117: - lamps (minor road)
A118: 17 | B118: 81 | C118: 2021-12-15 | D118: 20:7 | E118: -37.833414 | F118: 148.101083 | G118: 485 Rules Rd, Toorloo Arm VIC 3909, Australia | H118: 1903676 | I118: NLA34 | J118: 22kV AC | K118: RURAL SHORT | L118: - fuse (boric acid) | M118: single phase | N118: Started by any person, bird, reptile or other animal coming into contact with a distribution system | O118: HBRA only | P118: 1 | Q118: Low-moderate | R118: 0.2 | S118: 0.2 | T118: E0083076 | U118: 20211217SPN_01 | V118: Crew found candled fuse that failed to eject, fault caused by a bird.. A bird caused the fault operating the fuse that failed to eject and candle. | Y118: - luminaires (major road)
A119: 17 | B119: 82 | C119: 2021-12-19 | D119: 17:18 | E119: -36.57222139 | F119: 145.9891061 | G119: 35 Plum Ln, Benalla VIC 3672, Australia | H119: 3906322 | I119: BN6 | J119: 22kV AC | K119: RURAL LONG | L119: - fuse (boric acid) | M119: three phase | N119: Started by lightning striking a distribution system or a part of a distribution system | O119: within area delineated on plan LEGL./16-354 | P119: 4.6 | Q119: Low-moderate | R119: 0.2 | S119: 0.92 | T119: E0083156 | U119: 20211222SPN_04 | V119: Crew arrived and found a candled 22KV BA fuse. The fault was caused by lightening. . Lightening caused the fault that candled the fuse that failed to eject. | Y119: - luminaires (minor road)
A120: 17 | B120: 83 | C120: 2021-12-21 | D120: 6:49 | E120: -37.22252538 | F120: 147.6119217 | G120: 1320 Cassilis Rd, Cassilis VIC 3898, Australia | H120: 5741677 | I120: BDL42 | J120: 12.7kV AC (SWER) | K120: RURAL LONG | L120: - fuse (boric acid) | M120: single wire earth return (SWER) | N120: Otherwise started by a distribution system | O120: within electric line construction area | P120: 19.8 | Q120: Low-moderate | R120: 0.2 | S120: 3.96 | T120: E0083144 | U120: 20211222SPN_02 | V120: Crew arrived and found a 22KV BA fuse had candled.. The cause of the fault was not found, BA fuse candled and failed to eject. | Y120: - poles / columns (major road)
A121: 17 | B121: 84 | C121: 2021-12-21 | D121: 10:55 | E121: -36.53914333 | F121: 145.9773491 | G121: 16 Griffiths Ln, Benalla VIC 3672, Australia | H121: 3909673 | I121: GNTS-BN2 | J121: 66kV AC | K121: #N/A | L121: - overhead conductor (bare; all aluminium conductor) | M121: three phase | N121: Started by any person, bird, reptile or other animal coming into contact with a distribution system | O121: within area delineated on plan LEGL./16-354 | P121: 4.6 | Q121: Low-moderate | R121: 0.2 | S121: 0.92 | T121: E0083179 | U121: 20211223SPN_01 | V121: A large Ibis bird contacted 2 phases of 66KV open wire O/H conductors and X arm. scorch marks on the conductors and a ground fire was started approx. 20M square. Protection did not operate.. An Ibis bird contacted 2 ^^KV conductors and the X arm. | Y121: - poles / columns (minor road)
A122: 17 | B122: 85 | C122: 2021-12-21 | D122: 14:43 | E122: -36.391191 | F122: 146.438428 | G122: 1048 Great Alpine Rd, Tarrawingee VIC 3678, Australia | H122: 5110273 | I122: WN5 | J122: 22kV AC | K122: RURAL LONG | L122: - fuse (EDO fuse) | M122: single phase | N122: Otherwise started by a distribution system | O122: within area delineated on plan LEGL./16-354 | P122: 4.6 | Q122: Low-moderate | R122: 0.2 | S122: 0.92 | T122: E0083153 | U122: 20211222SPN_03 | V122: Crew arrived on site and found a candled HV EDO fuse that failed to eject.. EDO fuse failed to eject. | Y122: Other
A123: 17 | B123: 86 | C123: 2021-12-23 | D123: 12:34 | E123: -36.59705002 | F123: 147.091405 | G123: 6081 Kiewa Valley Highway, Coral Bank VIC 3691, Australia | H123: 5229008 | I123: MBY11 | J123: 22kV AC | K123: RURAL SHORT | L123: - fuse (boric acid) | M123: three phase | N123: Otherwise started by a distribution system | O123: HBRA only | P123: 1 | Q123: Low-moderate | R123: 0.2 | S123: 0.2 | T123: E0083493 | U123: 20220117SPN_01 | V123: Crew arrived on site and found a candled 22KV BA fuse. Extreme weather caused tracking and the fault. . Extreme weather caused the fault that candled the fuse. | Y123: - connection box
A124: 17 | B124: 87 | C124: 2021-12-24 | D124: 10:5 | E124: -38.59922901 | F124: 146.589395 | G124: 375 Gelliondale Rd, Alberton West VIC 3971, Australia | H124: 2624785 | I124: FTR12 | J124: Low voltage AC (<1kV) | K124: RURAL LONG | L124: - connection box | M124: three phase | N124: Started by any person, bird, reptile or other animal coming into contact with a distribution system | O124: HBRA only | P124: 1 | Q124: Low-moderate | R124: 0.2 | S124: 0.2 | T124: E0083199 | U124: 20211229SPN_01 | V124: Crew arrived on site CRN, LANES RD & GELLIONDALE RD ALBERTON; Pole to pit FOLCB on pole had burnt out causing grass fire at the base of the pole, approx. 15mtrs by 3mtrs, confined to road reserve. Fire was extinguished prior to crews arrival. No one on site. Resonance of Birds nesting in FOLCB caused the fire.. Birds nesting in the FOLCB caused the fire. | Y124: - earth / earthing
A125: 17 | B125: 88 | C125: 2021-12-30 | D125: 9:1 | E125: -38.61460701 | F125: 145.627549 | G125: 5300 Bass Hwy, Wonthaggi VIC 3995, Australia | H125: 2805461 | I125: WGI31 | J125: 22kV AC | K125: RURAL SHORT | L125: - fuse (boric acid) | M125: single phase | N125: Started by any person, bird, reptile or other animal coming into contact with a distribution system | O125: within area delineated on plan LEGL./16-354 | P125: 4.6 | Q125: High | R125: 0.5 | S125: 2.3 | T125: E0083212 | U125: 20211231SPN_01 | V125: Crew reported a candled fuse om site. A dead bird was found near the pole which was suspected to of cause the fault.. A dead bird found near the pole is suspected to of caused the fault.
A126: 17 | B126: 89 | C126: 2021-12-30 | D126: 12:26 | E126: -37.03360298 | F126: 146.00294 | G126: B320, Maindample VIC 3723, Australia | H126: 3917128 | I126: MSD2 | J126: 22kV AC | K126: RURAL LONG | L126: - fuse (boric acid) | M126: three phase | N126: Otherwise started by a distribution system | O126: within area delineated on plan LEGL./16-354 | P126: 4.6 | Q126: High | R126: 0.5 | S126: 2.3 | T126: E0083217 | U126: 20211231SPN_02 | V126: Crew attended site and found a candled fuse and 1 blown fuse. There was also a 100M X 100M ground fire.. Fuse failed to eject and candled. It is still unknown what caused the fault.
A127: 17 | B127: 90 | C127: 2021-12-30 | D127: 15:13 | E127: -37.121641 | F127: 146.000504 | G127: 40 McMillan Point Dr, Mansfield VIC 3722, Australia | H127: 3913770 | I127: MSD2 | J127: 22kV AC | K127: RURAL LONG | L127: - fuse (EDO fuse) | M127: single phase | N127: Otherwise started by a distribution system | O127: within area delineated on plan LEGL./16-354 | P127: 4.6 | Q127: High | R127: 0.5 | S127: 2.3 | T127: E0083218 | U127: 20211231SPN_03 | V127: Crew attended site and found a candled EDO fuse.. Fuse faild to eject. No cause for the fault was found. | Y127: Extra low voltage AC (<50V)
A128: 17 | B128: 91 | C128: 2022-01-01 | D128: 11:56 | E128: -37.67723598 | F128: 145.167232 | G128: 23 Bruce St, Diamond Creek VIC 3089, Australia | H128: 924091 | I128: ELM33 | J128: Low voltage AC (<1kV) | K128: URBAN | L128: - overhead conductor (bare; all aluminium conductor) | M128: three phase | N128: Started by any tree, or part of a tree, falling upon or coming into contact with a distribution system | O128: LBRA only | P128: 0.2 | Q128: Very high | R128: 1 | S128: 0.2 | T128: E0083230 | U128: 20220104SPN_01 | V128: There was a grass fire approx 10sqm allegedly caused by tree branch that had blown onto the LV bare O/H conductors. . A tree branch blew onto the open wire LV O/H conductors and caused a ground fire. | Y128: Low voltage AC (<1kV)
A129: 17 | B129: 92 | C129: 2022-01-01 | D129: 18:9 | E129: -37.71265299 | F129: 145.145489 | G129: 5 Handfield St, Eltham VIC 3095, Australia | H129: 918627 | I129: ELM25 | J129: 22kV AC | K129: URBAN | L129: - overhead conductor (bare; aluminium core steel reinforced) | M129: three phase | N129: Started by any tree, or part of a tree, falling upon or coming into contact with a distribution system | O129: LBRA only | P129: 0.2 | Q129: Very high | R129: 1 | S129: 0.2 | T129: E0083232 | U129: 20220113SPN_01 | V129: A tree fell causing damage to 2 HV insulators and LV crossarm, and causing the 22KV and LV conductors to dislodge and operated feeder ELM25. This caused a 3 meter squared ground fire.. A tree fell causing the cross-arm and insulators to break and fail and dislodge the HV conductors to dislodge and operate the circuit protection. to fail and | Y129: 2.2kV AC
A130: 17 | B130: 93 | C130: 2022-01-02 | D130: 14:47 | E130: -38.00004402 | F130: 145.494165 | G130: 340 Huxtable Rd, Pakenham Upper VIC 3810, Australia | H130: 504372 | I130: OFR23 | J130: 22kV AC | K130: RURAL LONG | L130: - fuse (boric acid) | M130: three phase | N130: Otherwise started by a distribution system | O130: HBRA only | P130: 1 | Q130: High | R130: 0.5 | S130: 0.5 | T130: E0083236 | U130: 20220104SPN_03 | V130: Crew found a15E BA candled fuse at switch BW1375, LIS : 504372. There was a Grass fire in the vicinity of 25 square meter's in size which was extinguished by CFA. . 22KV BA fuse candled and failed to eject. There was no cause of the fault found. | Y130: 6.6kV AC
A131: 17 | B131: 94 | C131: 2022-01-03 | D131: 17:37 | E131: -38.56948398 | F131: 146.584849 | G131: 298 Lower Jack Rd, Jack River VIC 3971, Australia | H131: 2624697 | I131: FTR12 | J131: 22kV AC | K131: RURAL LONG | L131: - fuse (boric acid) | M131: single phase | N131: Otherwise started by a distribution system | O131: HBRA only | P131: 1 | Q131: Low-moderate | R131: 0.2 | S131: 0.2 | T131: E0083240 | U131: 20220104SPN_04 | V131: Crew attended site and found a candled BA fuse.. BA fuse failed to eject and candled. | Y131: 11kV AC
A132: 17 | B132: 95 | C132: 2022-01-05 | D132: 5:16 | E132: -38.45688002 | F132: 145.245035 | G132: 1 Bayliss Ct, Cowes VIC 3922, Australia | H132: 2806249 | I132: PHI13 | J132: 22kV AC | K132: URBAN | L132: - insulators | M132: three phase | N132: Started in or originated from a distribution system | O132: LBRA only | P132: 0.2 | Q132: Low-moderate | R132: 0.2 | S132: 0.04 | T132: E0083255 | U132: 20220106SPN_03 | V132: A 22KV HV cross arm failed and broke causing the HV conductor to drop onto the LV conductors causing a HVI. An Insulator failing caused the HV to track to the cross arm king bolt causing the timber to slowly burn and fail.. A failed insulator caused tracking from the HV to the timber cross arm and king bolt causing it to slowly burn and fail. | Y132: 12.7kV AC (SWER)
A133: 17 | B133: 96 | C133: 2022-01-05 | D133: 7:33 | E133: -38.27434902 | F133: 145.771473 | G133: 115 Pine Grove Rd, Poowong North VIC 3988, Australia | H133: 2009189 | I133: LGA12 | J133: 22kV AC | K133: RURAL SHORT | L133: - fuse (boric acid) | M133: three phase | N133: Otherwise started by a distribution system | O133: HBRA only | P133: 1 | Q133: Low-moderate | R133: 0.2 | S133: 0.2 | T133: E0083253 | U133: 20220106SPN_04 | V133: Crew arrived on site and found a 22KV candled BA fuse that failed to eject. No ground fire.. A failed ISO caused the fault. | Y133: 22kV AC
A134: 17 | B134: 97 | C134: 2022-01-05 | D134: 10:44 | E134: -38.553881 | F134: 145.845057 | G134: Zotti and Dowels Rd/Bass Hwy, Leongatha South VIC 3953, Australia | H134: 2011151 | I134: LGA23 | J134: 22kV AC | K134: RURAL LONG | L134: - fuse (boric acid) | M134: three phase | N134: Otherwise started by a distribution system | O134: HBRA only | P134: 1 | Q134: Low-moderate | R134: 0.2 | S134: 0.2 | T134: E0083257 | U134: 20220106SPN_05 | V134: Crew arrived on site and found 2 blown BA 22KV fuses that had dropped and 1 BA fuse had candled and failed to eject. No ground fire.. The cause of the initial fault was not found that operated the fuses and 1 BA fuse failed to eject and candled. | Y134: 33kV AC
A135: 17 | B135: 98 | C135: 2022-01-06 | D135: 8:4 | E135: -38.64092185 | F135: 145.6874808 | G135: 80 Drowleys Rd, Inverloch VIC 3996, Australia | H135: 2808888 | I135: WGI31 | J135: 12.7kV AC (SWER) | K135: RURAL SHORT | L135: - fuse (boric acid) | M135: single wire earth return (SWER) | N135: Otherwise started by a distribution system | O135: within area delineated on plan LEGL./16-354 | P135: 4.6 | Q135: Low-moderate | R135: 0.2 | S135: 0.92 | T135: E0083259 | U135: 20220106SPN_06 | V135: Crew found a candled BA SWER fuse that failed to eject. No ground fire.. Fuse failed to eject and candled. | Y135: 66kV AC
A136: 17 | B136: 99 | C136: 2022-01-06 | D136: 19:19 | E136: -37.70101499 | F136: 145.18253 | G136: 16 Ingrams Rd, Research VIC 3095, Australia | H136: 919226 | I136: ELM25 | J136: Low voltage AC (<1kV) | K136: URBAN | L136: - connection box | M136: three phase | N136: Started by any person, bird, reptile or other animal coming into contact with a distribution system | O136: LBRA only | P136: 0.2 | Q136: Low-moderate | R136: 0.2 | S136: 0.04 | T136: E0083264 | U136: 20220107SPN_01 | V136: Fault crew attended site after a report of no power and found a 3 Phase FOLCB hanging from pole. When the crew put the ladder on the pole and started extending the ladder, the ladder came into contact with the conduit running up to the FOLCB and the slight movement caused the FOLCB to disintegrated and caught fire. This started a small fire at the base of the pole which they managed to extinguish by themselves. . Accidental contact with a ladder onto conduit and FOLCB on the pole. | Y136: 132kV AC
A137: 17 | B137: 100 | C137: 2022-01-07 | D137: 14:48 | E137: -37.87296999 | F137: 145.301325 | G137: 24 Saxonwood Ct, Ferntree Gully VIC 3156, Australia | H137: 1313341 | I137: FGY24 | J137: 22kV AC | K137: URBAN | L137: - insulators | M137: three phase | N137: Started in or originated from a distribution system | O137: LBRA only | P137: 0.2 | Q137: Low-moderate | R137: 0.2 | S137: 0.04 | T137: E0083270 | U137: 20220110SPN_02 | V137: Crew arrived and found at lis 1313341 a Pole fire caused by Tracking from center phase fuse bracket cover to timber pole.. Insulation/electrical breakdown caused the tracking to the pole resulting the smoldering of the pole. | Y137: 220kV AC
A138: 17 | B138: 101 | C138: 2022-01-09 | D138: 18:19 | E138: -36.37002199 | F138: 146.144705 | G138: 89 Hoystead Rd, Taminick VIC 3675, Australia | H138: 5105953 | I138: WN6 | J138: 22kV AC | K138: RURAL LONG | L138: - fuse (boric acid) | M138: three phase | N138: Started by lightning striking a distribution system or a part of a distribution system | O138: within area delineated on plan LEGL./16-354 | P138: 4.6 | Q138: Low-moderate | R138: 0.2 | S138: 0.92 | T138: E0083273 | U138: 20220110SPN_01 | V138: Crew found a Candled HV BA fuse at LIS 5105953. The Crew believes it may have been caused by the recent lightning storm. Grass fire at base of pole around 1500m2 in size which had been extinguished by CFA. . Lightening seems to be the cause of the fault and fire. | Y138: 330kV AC
A139: 17 | B139: 102 | C139: 2022-01-11 | D139: 10:16 | E139: -37.29785571 | F139: 144.9198517 | G139: Guijarro, 70 McDougalls Rd, Forbes VIC 3764, Australia | H139: 4702613 | I139: KMS12 | J139: 12.7kV AC (SWER) | K139: RURAL SHORT | L139: - fuse (boric acid) | M139: single wire earth return (SWER) | N139: Started by any person, bird, reptile or other animal coming into contact with a distribution system | O139: within electric line construction area | P139: 19.8 | Q139: High | R139: 0.5 | S139: =IF(OR(P139="",R139=""),"",IF(AND(O139="within electric line construction area",Q139="No forecast"),1,P139*R139)) -> 9.9 | T139: E0083341 | U139: 20220112SPN_01 | V139: Crew arrived on site and found a candled SWER BA fuse that caused a 1 meter ground fire. The fault was caused by a magpie striking the lines.. Magpie striking the lines caused the fault. | Y139: 500kV AC
A140: =COUNTA(C140:O140,Q140,T140:V140) -> 17 | B140: 103 | C140: 2022-01-11 | D140: 14:1 | E140: -36.24221913 | F140: 147.2641228 | G140: The Anchorage, 447 Yabba Rd, Tallangatta South VIC 3701, Australia | H140: 5211380 | I140: WOTS24 | J140: 12.7kV AC (SWER) | K140: RURAL LONG | L140: - fuse (boric acid) | M140: single wire earth return (SWER) | N140: Otherwise started by a distribution system | O140: within area delineated on plan LEGL./16-354 | P140: =IF(O140="","",IF(O140="LBRA only",0.2,IF(O140="HBRA only",1,IF(O140="within electric line construction area",19.8,IF(O140="within area delineated on plan LEGL./16-354",4.6,""))))) -> 4.6 | Q140: Low-moderate | R140: =IF(Q140="","",IF(Q140="No forecast",0.1,IF(Q140="Low-moderate",0.2,IF(Q140="High",0.5,IF(Q140="Very high",1,IF(Q140="Severe",2,IF(Q140="Extreme",3.5,5))))))) -> 0.2 | S140: 0.92 | T140: E0083463 | U140: 20220113SPN_03 | V140: The crew arrived on site and found a candled fuse, no ground fire, cause of the fault is unknown.. Cause of the fault is unknown, fuse candled and failed to eject. | Y140: Extra low voltage DC (<120V ripple free)
A141: 17 | B141: 104 | C141: 2022-01-12 | D141: 6:47 | E141: -37.409138 | F141: 144.973262 | G141: 119 Dudley St, Wallan VIC 3756, Australia | H141: 912658 | I141: KLO24 | J141: Low voltage AC (<1kV) | K141: RURAL SHORT | L141: - overhead conductor (bare; all aluminium conductor) | M141: three phase | N141: Started by any other thing forming part of or coming into contact with a distribution system | O141: LBRA only | P141: 0.2 | Q141: High | R141: 0.5 | S141: 0.1 | T141: E0083465 | U141: 20220113SPN_02 | V141: A tip truck illegally dumping rubbish contacted the bare O/H LV conductors. One of the conductors fell to the ground causing a 10 meter squared ground fire. The truck was not on site at the crews arrival. . A truck dumping rubbish tipped the back and contacted the open wire LV conductors causing one to break and fall to the ground. | Y141: Low voltage DC (<1.5kV)
A142: 17 | B142: 105 | C142: 2022-01-14 | D142: 14:11 | E142: -38.18668801 | F142: 145.705097 | G142: Koo Wee Rup-Longwarry Rd, Modella VIC 3816, Australia | H142: 512145 | I142: WGL12 | J142: 22kV AC | K142: RURAL LONG | L142: - fuse (boric acid) | M142: three phase | N142: Otherwise started by a distribution system | O142: HBRA only | P142: 1 | Q142: Low-moderate | R142: 0.2 | S142: 0.2 | T142: E0083496 | U142: 20220117SPN_04 | V142: The crew attended site and found a candled BA fuse that had caused a 9 meter square ground fire. Fire was extinguished on arrival.. Fuse failed to eject and candled. No cause of the fault was found. | Y142: 600V DC
A143: 17 | B143: 106 | C143: 2022-01-14 | D143: 16:27 | E143: -37.805333 | F143: 147.498852 | G143: 165 Settlement Rd, Lindenow VIC 3865, Australia | H143: 1608126 | I143: BDL44 | J143: Low voltage AC (<1kV) | K143: RURAL LONG | L143: - connection box | M143: single phase | N143: Started in or originated from a distribution system | O143: LBRA only | P143: 0.2 | Q143: Low-moderate | R143: 0.2 | S143: 0.04 | T143: E0083501 | U143: 20220117SPN_05 | V143: Crew arrived on site and found a LV krone box on a concrete pole had caught fire, no ground fire.. Electrical breakdown caused the FOLCB on the pole to catch fire. | Y143: 1500V DC
A144: 17 | B144: 107 | C144: 2022-01-15 | D144: 3:38 | E144: -36.471258 | F144: 147.248706 | G144: 78 Little Snowy Creek Rd, Eskdale VIC 3701, Australia | H144: 5217898 | I144: WOTS13 | J144: 22kV AC | K144: RURAL LONG | L144: - fuse (boric acid) | M144: three phase | N144: Started by lightning striking a distribution system or a part of a distribution system | O144: within area delineated on plan LEGL./16-354 | P144: 4.6 | Q144: Low-moderate | R144: 0.2 | S144: 0.92 | T144: E0083502 | U144: 20220117SPN_06 | V144: Crew arrived and found 2 candled BA fuses. Fault caused bt lightening. No ground fire.. Lightening caused the fault that caused the fuses to candle. | Y144: Earthing cable
A145: 17 | B145: 108 | C145: 2022-01-15 | D145: 10:1 | E145: -37.81785799 | F145: 145.590993 | G145: 525 Gembrook-Launching Pl Rd, Hoddles Creek VIC 3139, Australia | H145: 1405329 | I145: WYK23 | J145: 22kV AC | K145: RURAL SHORT | L145: - fuse (boric acid) | M145: single phase | N145: Started by lightning striking a distribution system or a part of a distribution system | O145: within area delineated on plan LEGL./16-354 | P145: 4.6 | Q145: Low-moderate | R145: 0.2 | S145: 0.92 | T145: E0083503 | U145: 20220117SPN_07 | V145: Crew attended and found a candled 22KV BA fuse on the red phase. Lightning was the possible cause of the fault.. Lightning seemed to be the cause of the fault that candled the BA fuse that failed to eject.
A146: 17 | B146: 109 | C146: 2022-01-15 | D146: 20:34 | E146: -37.19307802 | F146: 147.723381 | G146: 7725 Great Alpine Rd, Tongio VIC 3896, Australia | H146: 1602923 | I146: BDL42 | J146: 22kV AC | K146: RURAL LONG | L146: - fuse (boric acid) | M146: single phase | N146: Started by lightning striking a distribution system or a part of a distribution system | O146: within electric line construction area | P146: 19.8 | Q146: Low-moderate | R146: 0.2 | S146: 3.96 | T146: E0083504 | U146: 20220118SPN_01 | V146: Crew found 2 X 22KV candled BA fuses. The cause of the fault was lightning but the fuses failed to eject. No ground fire.. The fuses failed to eject and candled.
A147: 17 | B147: 110 | C147: 2022-01-15 | D147: 22:6 | E147: -36.15423929 | F147: 146.8383452 | G147: 8 Spring Gully Rd, Huon Creek VIC 3691, Australia | H147: 5202976 | I147: WOTS25 | J147: 22kV AC | K147: RURAL SHORT | L147: - fuse (boric acid) | M147: single phase | N147: Started by lightning striking a distribution system or a part of a distribution system | O147: within area delineated on plan LEGL./16-354 | P147: 4.6 | Q147: Low-moderate | R147: 0.2 | S147: 0.92 | T147: E0083505 | U147: 20220117SPN_08 | V147: Crew found a candled BA fuse that failed to eject, the fault suspected to be caused by lightening. . The BA fuse failed to eject and candled. | Y147: single wire earth return (SWER)
A148: 17 | B148: 111 | C148: 2022-01-16 | D148: 4:12 | E148: -37.72481101 | F148: 145.149951 | G148: 1 Bible St, Eltham VIC 3095, Australia | H148: 921495 | I148: ELM22 | J148: 22kV AC | K148: URBAN | L148: - overhead conductor (bare; aluminium core steel reinforced) | M148: three phase | N148: Started by any person, bird, reptile or other animal coming into contact with a distribution system | O148: LBRA only | P148: 0.2 | Q148: Low-moderate | R148: 0.2 | S148: 0.04 | T148: E0083506 | U148: 20220118SPN_02 | V148: Crew reported a fire outside 1 Bible St, Eltham, caused by possums. LIS 921495. No damage to electrical assets. Gas leak near base of pole, gas crew on site. Fire was put out by neighbors. Approx 4m2 in size. Circuit feeder tripped. . A possum contacting the HV caused the fire and feeder to trip. | Y148: single phase
A149: 17 | B149: 112 | C149: 2022-01-17 | D149: 9:16 | E149: -38.46809698 | F149: 145.950367 | G149: 9 Wild Dog Valley Rd, Leongatha VIC 3953, Australia | H149: 2005230 | I149: LGA22 | J149: 22kV AC | K149: RURAL SHORT | L149: - fuse (boric acid) | M149: three phase | N149: Started by any person, bird, reptile or other animal coming into contact with a distribution system | O149: HBRA only | P149: 1 | Q149: Low-moderate | R149: 0.2 | S149: 0.2 | T149: E0083515 | U149: 20220118SPN_03 | V149: Crew arrived on site and found 1 blown and 1 candled BA fuse that failed to eject. The initial fault was caused by a possum. No ground fire.. The BA fuse failed to eject and candled. | Y149: two phase
A150: 17 | B150: 113 | C150: 2022-01-19 | D150: 13:39 | E150: -37.28417798 | F150: 144.960789 | G150: 7 Kellys Ln, Kilmore VIC 3764, Australia | H150: 4701992 | I150: KMS12 | J150: 22kV AC | K150: RURAL SHORT | L150: - fuse (boric acid) | M150: single phase | N150: Otherwise started by a distribution system | O150: within area delineated on plan LEGL./16-354 | P150: 4.6 | Q150: High | R150: 0.5 | S150: 2.3 | T150: E0083615 | U150: 20220121SPN_03 | V150: Crew found a candled BA fuse that failed to eject. No cause found.. Fuse failed to eject. | Y150: three phase
A151: 17 | B151: 114 | C151: 2022-01-20 | D151: 6:1 | E151: -36.53269799 | F151: 146.673399 | G151: 265 Lower River Rd E, Gapsted VIC 3737, Australia | H151: 4500106 | I151: MYT12 | J151: 22kV AC | K151: RURAL LONG | L151: - fuse (boric acid) | M151: three phase | N151: Otherwise started by a distribution system | O151: within area delineated on plan LEGL./16-354 | P151: 4.6 | Q151: High | R151: 0.5 | S151: 2.3 | T151: E0083623 | U151: 20220121SPN_05 | V151: Crew attended and found a candled BA fuse that failed to eject.. Candled BA fuse failed to eject.
A152: 17 | B152: 115 | C152: 2022-01-21 | D152: 6:8 | E152: -38.331215 | F152: 146.463778 | G152: 520 Thomson Rd, Hazelwood South VIC 3840, Australia | H152: 2625756 | I152: MWL24 | J152: 22kV AC | K152: RURAL SHORT | L152: - fuse (boric acid) | M152: single phase | N152: Otherwise started by a distribution system | O152: HBRA only | P152: 1 | Q152: High | R152: 0.5 | S152: 0.5 | T152: E0083632 | U152: 20220121SPN_06 | V152: Crew attended and found a candled BA fuse.. BA fuse failed to eject and candled
A153: 17 | B153: 116 | C153: 2022-01-21 | D153: 19:16 | E153: -37.78072001 | F153: 145.234989 | G153: 631 Ringwood-Warrandyte Rd, Ringwood North VIC 3134, Australia | H153: 1202887 | I153: RWN34 | J153: Low voltage AC (<1kV) | K153: RURAL SHORT | L153: - switch (disconnector/isolator) | M153: three phase | N153: Started in or originated from a distribution system | O153: LBRA only | P153: 0.2 | Q153: High | R153: 0.5 | S153: 0.1 | T153: E0083638 | U153: 20220124SPN_01 | V153: A burnt out connection on the Red phase Tx LV isolator, caused a grass fire 100 meter squared on the nature strip. Fire brigade were there on arrival and extinguished the fire. . Electrical failure of the LV isolator caused overheating and debris to fall and start a ground fire. | Y153: Negligible: no ground fire
A154: 17 | B154: 117 | C154: 2022-01-23 | D154: 14:57 | E154: -38.2058698 | F154: 147.2940952 | G154: Longford-Loch Sport Rd, Dutson VIC 3851, Australia | H154: 5655521 | I154: SLE31 | J154: 22kV AC | K154: RURAL LONG | L154: - switch (any other type) | M154: three phase | N154: Started by any person, bird, reptile or other animal coming into contact with a distribution system | O154: within area delineated on plan LEGL./16-354 | P154: 4.6 | Q154: Low-moderate | R154: 0.2 | S154: 0.92 | T154: E0083639 | U154: 20220124SPN_02 | V154: A crow contacted the bushings of a gas switch at LIS 5655521, this burnt out the U/G connection causing a ground fire approx 600m2 in size. This had been extinguished on arrival. feeder tripped.. A crow contacting the HV gas switch bushings caused the fire. | Y154: Localised: less than 10 sq.m
A155: 17 | B155: 118 | C155: 2022-01-25 | D155: 13:29 | E155: -37.842475 | F155: 145.255045 | G155: 1 Marlborough Rd, Bayswater VIC 3153, Australia | H155: 1223827 | I155: BWR32 | J155: 22kV AC | K155: URBAN | L155: - overhead conductor (bare; aluminium core steel reinforced) | M155: three phase | N155: Started by any other thing forming part of or coming into contact with a distribution system | O155: LBRA only | P155: 0.2 | Q155: High | R155: 0.5 | S155: 0.1 | T155: E0083684 | U155: 20220128SPN_02 | V155: A Truck hit the Optus & catenary cables between poles 1223827 & 1223830 which flicked into the HV open wire conductors. Splash marks on the conductors but OK to re-energise.. A truck hit the optus cable causing it to flick onto the 22KV O/H open wire cables. | Y155: Small: 10 - 1000 aq.m
A156: 17 | B156: 119 | C156: 2022-01-25 | D156: 17:42 | E156: -37.70581252 | F156: 145.1563221 | G156: 31 Sheffield St, Eltham VIC 3095, Australia | H156: 918763 | I156: ELM26 | J156: Low voltage AC (<1kV) | K156: RURAL SHORT | L156: - dropper / bridge | M156: three phase | N156: Started in or originated from a distribution system | O156: LBRA only | P156: 0.2 | Q156: High | R156: 0.5 | S156: 0.1 | T156: E0083699 | U156: 20220128SPN_04 | V156: An LV bridge burnt out caused by corrosion and started a 1 meter square ground fire.. Corrosion of the connections caused the electrical failure. | Y156: Medium: 1000 sq.m - 10 ha
A157: 17 | B157: 120 | C157: 2022-01-25 | D157: 18:17 | E157: -38.23950298 | F157: 145.89551 | G157: 251A Hunters Rd, Warragul South VIC 3821, Australia | H157: 2705199 | I157: WGL23 | J157: 22kV AC | K157: RURAL SHORT | L157: - overhead conductor (bare; all aluminium conductor) | M157: three phase | N157: Started by any tree, or part of a tree, falling upon or coming into contact with a distribution system | O157: HBRA only | P157: 1 | Q157: Low-moderate | R157: 0.2 | S157: 0.2 | T157: E0083698 | U157: 20220128SPN_03 | V157: Branch failure of cypress tree approximately 12m higher than line height resulting in branch making contact with the HV lines causing a 12,140.56 meter square ground fire.. A tree failed and a branch contacted the HV bare O/H conductor. | Y157: Large: more than 10 ha
A158: 17 | B158: 121 | C158: 2022-01-26 | D158: 16:9 | E158: -37.7470559 | F158: 145.3270955 | G158: 1 Polaris Way, Chirnside Park VIC 3116, Australia | H158: 1013330 | I158: CPK12 | J158: Low voltage AC (<1kV) | K158: RURAL SHORT | L158: - connector / termination | M158: three phase | N158: Started in or originated from a distribution system | O158: LBRA only | P158: 0.2 | Q158: High | R158: 0.5 | S158: 0.1 | T158: E0083700 | U158: 20220131SPN_01 | V158: A L/V open wire Neutral IPC burnt off between the open wire line and transformer. 1 sqm fire in vicinity. Customers called to report appliance damage.. Failed IPC connector.
A159: 17 | B159: 122 | C159: 2022-01-27 | D159: 19:58 | E159: -37.490433 | F159: 145.038062 | G159: 120 Janna Rd, Beveridge VIC 3753, Australia | H159: 914224 | I159: KLO14 | J159: 22kV AC | K159: RURAL LONG | L159: - transformer (pole mounted) | M159: single phase | N159: Started by lightning striking a distribution system or a part of a distribution system | O159: within area delineated on plan LEGL./16-354 | P159: 4.6 | Q159: High | R159: 0.5 | S159: 2.3 | T159: E0083715 | U159: 20220131SPN_03 | V159: Lightening struck a transformer causing a BA fuse to blow and damage to the transformer and a 4 meter square ground fire.. Lightening caused the damage No HVI.
A160: 17 | B160: 123 | C160: 2022-01-28 | D160: 3:9 | E160: -37.42311914 | F160: 145.4409522 | G160: 103 Joyces Rd, Glenburn VIC 3717, Australia | H160: 1401280 | I160: KLK11 | J160: 12.7kV AC (SWER) | K160: RURAL SHORT | L160: - overhead conductor (bare; steel) | M160: single wire earth return (SWER) | N160: Started by lightning striking a distribution system or a part of a distribution system | O160: within electric line construction area | P160: 19.8 | Q160: Low-moderate | R160: 0.2 | S160: 3.96 | T160: E0083716 | U160: 20220131SPN_04 | V160: SWER BA fuse was hit by lightening causing it to blow.. Lightening hit the O/H assets causing the fault that candled the fuse that failed to eject. | Y160: Started in or originated from a distribution system
A161: 17 | B161: 124 | C161: 2022-01-28 | D161: 6:28 | E161: -37.45938099 | F161: 145.046037 | G161: 130W MacGregor Rd, Beveridge VIC 3753, Australia | H161: 913689 | I161: KLO14 | J161: 22kV AC | K161: RURAL LONG | L161: - fuse (boric acid) | M161: single phase | N161: Started by lightning striking a distribution system or a part of a distribution system | O161: within area delineated on plan LEGL./16-354 | P161: 4.6 | Q161: Low-moderate | R161: 0.2 | S161: 0.92 | T161: E0083730 | U161: 20220202SPN_01 | V161: Crew arrived on site and found a candled BA fuse. Lightening strike caused the fault.. Lightening caused the fault that candled the fuse. | Y161: Started by any tree, or part of a tree, falling upon or coming into contact with a distribution system
A162: 17 | B162: 125 | C162: 2022-01-28 | D162: 8:4 | E162: -37.630775 | F162: 145.249878 | G162: 745 C728, Panton Hill VIC 3759, Australia | H162: 920141 | I162: DRN23 | J162: 22kV AC | K162: RURAL LONG | L162: - fuse (EDO fuse) | M162: three phase | N162: Started by lightning striking a distribution system or a part of a distribution system | O162: HBRA only | P162: 1 | Q162: Low-moderate | R162: 0.2 | S162: 0.2 | T162: E0083734 | U162: 20220202SPN_02 | V162: Crew arrived on site and found a candled EDO fuse. lightening was presumably the cause of the fault.. Lightening was the cause of the fault that caused the fuse to candle and fail to eject. | Y162: Started by any person, bird, reptile or other animal coming into contact with a distribution system
A163: 17 | B163: 126 | C163: 2022-01-28 | D163: 19:37 | E163: -38.24124101 | F163: 147.131444 | G163: 18 Carrs Creek Rd, Longford VIC 3851, Australia | H163: 2505459 | I163: SLE31 | J163: 22kV AC | K163: RURAL LONG | L163: - fuse (boric acid) | M163: single phase | N163: Started by lightning striking a distribution system or a part of a distribution system | O163: within area delineated on plan LEGL./16-354 | P163: 4.6 | Q163: Low-moderate | R163: 0.2 | S163: 0.92 | T163: E0083735 | U163: 20220502SPN_01 | V163: Crew were called out and found a candled BA fuse 2 fuses also blew suspected lightening strike... BA fuses blew and one failed to eject and candled. | Y163: Started by lightning striking a distribution system or a part of a distribution system
A164: 17 | B164: 127 | C164: 2022-01-28 | D164: 22:3 | E164: -36.45840302 | F164: 146.214641 | G164: Boongarrie, 246 Old Hume Hwy, Glenrowan VIC 3675, Australia | H164: 5102867 | I164: WN6 | J164: 22kV AC | K164: RURAL LONG | L164: - fuse (boric acid) | M164: three phase | N164: Otherwise started by a distribution system | O164: within area delineated on plan LEGL./16-354 | P164: 4.6 | Q164: Low-moderate | R164: 0.2 | S164: 0.92 | T164: E0083736 | U164: 20220202SPN_03 | V164: Crew arrived on site and found a candled fuse that failed to eject. No cause of the fault found.. BA fuse failed to eject and candled. | Y164: Started by any other thing forming part of or coming into contact with a distribution system
A165: 17 | B165: 128 | C165: 2022-01-30 | D165: 22:8 | E165: -38.15681301 | F165: 146.08408 | G165: 616 Yarragon-Shady Creek Rd, Yarragon VIC 3823, Australia | H165: 2202430 | I165: MOE21 | J165: 22kV AC | K165: RURAL LONG | L165: - fuse (boric acid) | M165: single phase | N165: Otherwise started by a distribution system | O165: within area delineated on plan LEGL./16-354 | P165: 4.6 | Q165: Low-moderate | R165: 0.2 | S165: 0.92 | T165: E0083748 | U165: 20220210SPN_01 | V165: Crew arrived and found a candled BA fuse.. BA fuse failed to eject and candled | Y165: Otherwise started by a distribution system
A166: 17 | B166: 129 | C166: 2022-02-01 | D166: 14:25 | E166: -38.14628799 | F166: 145.378553 | G166: 230 Muddy Gates Ln, Clyde VIC 3978, Australia | H166: 521950 | I166: LLG14 | J166: 22kV AC | K166: RURAL SHORT | L166: - fuse (boric acid) | M166: single phase | N166: Started by lightning striking a distribution system or a part of a distribution system | O166: within area delineated on plan LEGL./16-354 | P166: 4.6 | Q166: High | R166: 0.5 | S166: 2.3 | T166: E0083776 | U166: 20220203SPN_01 | V166: Crew attended and found 1 blown and 1 candled BA fuse. Lightening was the cause of the fault.. Lightening was the fault that caused1 BA fuse to blow and 1 BA fuse to candle
A167: 17 | B167: 130 | C167: 2022-02-03 | D167: 12:20 | E167: -36.312991 | F167: 146.498744 | G167: 367 Powerhouse Ln, Byawatha VIC 3678, Australia | H167: 5104120 | I167: WN3 | J167: 22kV AC | K167: RURAL LONG | L167: - fuse (EDO fuse) | M167: single phase | N167: Otherwise started by a distribution system | O167: within area delineated on plan LEGL./16-354 | P167: 4.6 | Q167: High | R167: 0.5 | S167: 2.3 | T167: E0083817 | U167: 20220204SPN_01 | V167: Crew found a candled EDO fuse that failed to eject. Extreme weather caused the fault. No ground fire.. EDP fuse failed to eject and candled.
A168: 17 | B168: 131 | C168: 2022-02-05 | D168: 7:53 | E168: -38.08190099 | F168: 147.134955 | G168: 31 Boyces Rd, Cobains VIC 3851, Australia | H168: 2503594 | I168: SLE32 | J168: 22kV AC | K168: RURAL SHORT | L168: - fuse (EDO fuse) | M168: single phase | N168: Otherwise started by a distribution system | O168: LBRA only | P168: 0.2 | Q168: Low-moderate | R168: 0.2 | S168: 0.04 | T168: E0083933 | U168: 20220207SPN_01 | V168: Crew found a candled EDO fuse. No cause of the fault found. EDO fuse failed to eject and candled | Y168: 1
A169: 17 | B169: 132 | C169: 2022-02-08 | D169: 0:5 | E169: -38.172838 | F169: 145.969567 | G169: 15 Pollock St, Nilma VIC 3821, Australia | H169: 2705828 | I169: WGL22 | J169: 22kV AC | K169: UNCLASSIFIED | L169: - overhead conductor (bare; all aluminium conductor) | M169: three phase | N169: Started by any person, bird, reptile or other animal coming into contact with a distribution system | O169: HBRA only | P169: 1 | Q169: Low-moderate | R169: 0.2 | S169: 0.2 | T169: E0084050 | U169: 20220208SPN_01 | V169: A possum contacted the 22KV open wire O/H conductors causing a 5 meter square ground fire and station blackout at WGL affecting 27000 customers. CFA extinguished the fire before arrival.. A possum contacting the 22kv O/W caught fire causing a 5 meter ground fire. | Y169: 2
A170: 17 | B170: 133 | C170: 2022-02-08 | D170: 19:26 | E170: -38.25305702 | F170: 146.466541 | G170: 12 Tanners Rd, Hazelwood North VIC 3840, Australia | H170: 2618884 | I170: MWL14 | J170: 22kV AC | K170: RURAL SHORT | L170: - overhead conductor (bare; all aluminium conductor) | M170: single phase | N170: Started by any tree, or part of a tree, falling upon or coming into contact with a distribution system | O170: HBRA only | P170: 1 | Q170: Low-moderate | R170: 0.2 | S170: 0.2 | T170: E0084071 | U170: 20220209SPN_01 | V170: CONDUCTOR DOWN BETWEEN LIS#2618884 and LIS#2615211. grass fire - 25m x 6m. Third party working with excavator stated a tree branch fell and contacted the O/H conductor causing the fire. Excavator did not contact the tree branch causing it to fall.. Root cause of incident reported by property owner, was the tree branch snapping and making contact with overhead HV conductor | Y170: 3
A171: 17 | B171: 134 | C171: 2022-02-09 | D171: 13:45 | E171: -37.79404398 | F171: 145.353072 | G171: 66 Edinburgh Rd, Lilydale VIC 3140, Australia | H171: 1000088 | I171: LDL11 | J171: Low voltage AC (<1kV) | K171: RURAL SHORT | L171: - connector / termination | M171: three phase | N171: Started in or originated from a distribution system | O171: within area delineated on plan LEGL./16-354 | P171: 4.6 | Q171: High | R171: 0.5 | S171: =IF(OR(P171="",R171=""),"",IF(AND(O171="within electric line construction area",Q171="No forecast"),1,P171*R171)) -> 2.3 | T171: E0084076 | U171: 20220210SPN_02 | V171: A failed PG clamp fell off the line and started a 1.5 meter squared ground fire. 1 L/V fuse blew. Electrical/mechanical breakdown of the PG clamp caused the fire. | Y171: 4
A172: 17 | B172: 135 | C172: 2022-02-12 | D172: 9:17 | E172: -37.91934301 | F172: 145.467421 | G172: 2A Fairway Rd, Emerald VIC 3782, Australia | H172: 420064 | I172: BGE22 | J172: 22kV AC | K172: RURAL SHORT | L172: - fuse (boric acid) | M172: three phase | N172: Started by any person, bird, reptile or other animal coming into contact with a distribution system | O172: LBRA only | P172: 0.2 | Q172: High | R172: 0.5 | S172: 0.1 | T172: E0084116 | U172: 20220214SPN_01 | V172: Crew arrived on site and found a candled BA fuse that failed to eject. There was a dead possum on the ground. No ground fire.. Fuse failed to eject and candled. | Y172: 5
A173: 17 | B173: 136 | C173: 2022-02-14 | D173: 4:32 | E173: -38.30230999 | F173: 146.429171 | G173: 2 Winchester Way, Churchill VIC 3842, Australia | H173: 2614648 | I173: MWL24 | J173: 22kV AC | K173: RURAL SHORT | L173: - switch (disconnector/isolator) | M173: three phase | N173: Started by any person, bird, reptile or other animal coming into contact with a distribution system | O173: HBRA only | P173: 1 | Q173: High | R173: 0.5 | S173: 0.5 | T173: E0084125 | U173: 20220214SPN_02 | V173: CFA reported a 50 M square ground fire near pole 2614648. Crew arrived and found a dead possum on the ground. Looks like it got caught up across the gas switch. Protection did not operate. A possum got caught up between phases on the gas switch, falling to the ground and causing a ground fire. | Y173: 6
A174: 17 | B174: 137 | C174: 2022-02-14 | D174: 5:25 | E174: -38.11092402 | F174: 145.685807 | G174: 240 Fourteen Mile Rd, Garfield VIC 3814, Australia | H174: 514788 | I174: WGL12 | J174: 22kV AC | K174: RURAL LONG | L174: - overhead conductor (bare; steel) | M174: single phase | N174: Started in or originated from a distribution system | O174: HBRA only | P174: 1 | Q174: High | R174: 0.5 | S174: 0.5 | T174: E0084141 | U174: 20220214SPN_03 | V174: A 22KV O/H conductor failed and fell to the ground causing a 2 meter ground fire Between poles 514788 and 514790. 22kv BA fuse candled from the event, Osiris 20220309SPN_01. same event 2 different fire locations.. Corrosion of the conductor caused it to fail and fall to the ground. | Y174: 7
A175: 17 | B175: 138 | C175: 2022-02-14 | D175: 5:25 | E175: -38.10079802 | F175: 145.679821 | G175: 100 Fourteen Mile Rd, Garfield VIC 3814, Australia | H175: 514776 | I175: WGL12 | J175: 22kV AC | K175: RURAL LONG | L175: - fuse (boric acid) | M175: three phase | N175: Started in or originated from a distribution system | O175: HBRA only | P175: 1 | Q175: High | R175: 0.5 | S175: 0.5 | T175: E0084747 | U175: 20220309SPN_01 | V175: A 22KV BA fuse candled and failed to eject. The fault was caused by a conductor hitting the deck between poles 514788 and 514790, causing a small ground fire. Osiris 20220214SPN-03. Same event different fire locations, (ground fire from cable on deck and candled fuse).. BA fuse failed to eject and candled. No ground fire at this position. | Y175: 8
A176: 17 | B176: 139 | C176: 2022-02-14 | D176: 16:32 | E176: -37.26519599 | F176: 144.943126 | G176: 110 Boundary Rd, Moranding VIC 3764, Australia | H176: 4702558 | I176: KMS11 | J176: Low voltage AC (<1kV) | K176: RURAL SHORT | L176: - connection box | M176: single phase | N176: Started in or originated from a distribution system | O176: within area delineated on plan LEGL./16-354 | P176: 4.6 | Q176: Very high | R176: 1 | S176: 4.6 | T176: E0084160 | U176: 20220216SPN_01 | V176: A FOLCB on the pole caught fire causing a 1 meter squared ground fire.. Electrical breakdown of the FOLCB caused the fire. | Y176: 9
A177: 17 | B177: 140 | C177: 2022-02-15 | D177: 10:38 | E177: -36.93447231 | F177: 145.6642522 | G177: C366, Merton VIC 3715, Australia | H177: 3913941 | I177: MSD2 | J177: 12.7kV AC (SWER) | K177: RURAL LONG | L177: - overhead conductor (bare; steel) | M177: single wire earth return (SWER) | N177: Started by any other thing forming part of or coming into contact with a distribution system | O177: within area delineated on plan LEGL./16-354 | P177: 4.6 | Q177: High | R177: 0.5 | S177: 2.3 | T177: E0084213 | U177: 20220311SPN_01 | V177: Harvester carrying pine tree branch made contact with SWER conductor causing a 2500 meter square ground fire. Feeder tripped to lockout. . When crew attended site they found a farmer had contacted the SWER conductor with a Manitou, ( Tractor Forklift) with a large tree branch on the boom. He broke the wire, which in turn landed across his machine | Y177: 10
A178: 17 | B178: 141 | C178: 2022-02-17 | D178: 5:13 | E178: -37.88491 | F178: 145.370284 | G178: Kallista Primary School/Kallista-Emerald Rd, Sherbrooke VIC 3789, Australia | H178: 1305193 | I178: BGE11 | J178: 22kV AC | K178: RURAL SHORT | L178: - fuse (boric acid) | M178: three phase | N178: Started by any person, bird, reptile or other animal coming into contact with a distribution system | O178: within electric line construction area | P178: 19.8 | Q178: Low-moderate | R178: 0.2 | S178: 3.96 | T178: E0084266 | U178: 20220218SPN_02 | V178: A possum found across the LAs caused the fault that operated the BA fuse. BA fuse candled and failed to eject.. Fuse failed to eject and candled. | Y178: =Y177+1 -> 11
A179: 17 | B179: 142 | C179: 2022-02-17 | D179: 6:23 | E179: -38.571291 | F179: 146.12217 | G179: 205 Boags Rd, Stony Creek VIC 3957, Australia | H179: 2014068 | I179: LGA13 | J179: 22kV AC | K179: RURAL LONG | L179: - fuse (EDO fuse) | M179: single phase | N179: Otherwise started by a distribution system | O179: HBRA only | P179: 1 | Q179: Low-moderate | R179: 0.2 | S179: 0.2 | T179: E0084265 | U179: 20220218SPN_01 | V179: Crew attended site and found a candled EDO fuse.. EDO fuse failed to eject and candled | Y179: =Y178+1 -> 12
A180: 17 | B180: 143 | C180: 2022-02-17 | D180: 16:10 | E180: -38.116175 | F180: 146.288113 | G180: 730 Moe-Walhalla Rd, Tanjil South VIC 3825, Australia | H180: 2200909 | I180: MOE15 | J180: Low voltage AC (<1kV) | K180: RURAL SHORT | L180: - overhead conductor (insulated) | M180: single phase | N180: Started in or originated from a distribution system | O180: within area delineated on plan LEGL./16-354 | P180: 4.6 | Q180: Low-moderate | R180: 0.2 | S180: 0.92 | T180: E0084287 | U180: 20220218SPN_03 | V180: A faulty LV lead in the fuse box broke down and caused a 1 meter square ground fire.. Connection electrical breakdown caused the fire. | Y180: 13
A181: 17 | B181: 144 | C181: 2022-02-18 | D181: 14:55 | E181: -38.11355802 | F181: 145.658725 | G181: 222 Lovers Ln, Garfield VIC 3814, Australia | H181: 514810 | I181: WGL12 | J181: 22kV AC | K181: RURAL LONG | L181: - fuse (boric acid) | M181: single phase | N181: Started by any person, bird, reptile or other animal coming into contact with a distribution system | O181: HBRA only | P181: 1 | Q181: Low-moderate | R181: 0.2 | S181: 0.2 | T181: E0084334 | U181: 20220221SPN_01 | V181: Crew arrived on site and found a candled BA fuse. No ground fire. A possum caused the fault but the fuse failed to eject.. Fuse failed to eject and candled. | Y181: 14
A182: 17 | B182: 145 | C182: 2022-02-20 | D182: 13:44 | E182: -36.71024968 | F182: 145.2296964 | G182: 273 Wahring-Euroa Rd, Wahring VIC 3608, Australia | H182: 4706950 | I182: SMR24 | J182: 12.7kV AC (SWER) | K182: RURAL LONG | L182: - overhead conductor (bare; steel) | M182: single wire earth return (SWER) | N182: Started by any other thing forming part of or coming into contact with a distribution system | O182: within area delineated on plan LEGL./16-354 | P182: 4.6 | Q182: Very high | R182: 1 | S182: 4.6 | T182: E0084338 | U182: 20220221SPN_02 | V182: At lis 4706950 there is a conductor on the ground. farmer struck conductor with tractor dragging a large stump causing a grass fire 5,026 meters square. conductor broken on T-off side of live line clamps, not on the main line. . Property owner was moving a tree limb using a Manitou with the forks raised and contacted a overhead high voltage SWER Conductor. | Y182: 15
A183: 17 | B183: 146 | C183: 2022-02-20 | D183: 18:17 | E183: -37.96466501 | F183: 145.542652 | G183: 62A Maisey Rd, Gembrook VIC 3783, Australia | H183: 416126 | I183: OFR23 | J183: 22kV AC | K183: RURAL LONG | L183: - fuse (boric acid) | M183: three phase | N183: Otherwise started by a distribution system | O183: HBRA only | P183: 1 | Q183: High | R183: 0.5 | S183: 0.5 | T183: E0084339 | U183: 20220222SPN_01 | V183: Crew arrived on site and found a candled BA fuse. No ground fire.. BA fuse failed to eject and candled. | Y183: 16
A184: 17 | B184: 147 | C184: 2022-02-21 | D184: 6:20 | E184: -38.56032602 | F184: 146.503377 | G184: 515 Albert River Rd, Staceys Bridge VIC 3971, Australia | H184: 2622177 | I184: FTR12 | J184: 22kV AC | K184: RURAL LONG | L184: - fuse (boric acid) | M184: single phase | N184: Otherwise started by a distribution system | O184: HBRA only | P184: 1 | Q184: Low-moderate | R184: 0.2 | S184: 0.2 | T184: E0084366 | U184: 20220223SPN_02 | V184: Crew arrived on site and found a candled BA fuse. No cause of the fault found.. BA fuse failed to eject and candled. | Y184: 17
A185: 17 | B185: 148 | C185: 2022-02-21 | D185: 6:49 | E185: -38.39547199 | F185: 145.982847 | G185: 585 Canavans Rd, Leongatha North VIC 3953, Australia | H185: 2000742 | I185: LGA11 | J185: 22kV AC | K185: RURAL LONG | L185: - fuse (boric acid) | M185: single phase | N185: Otherwise started by a distribution system | O185: HBRA only | P185: 1 | Q185: Low-moderate | R185: 0.2 | S185: 0.2 | T185: E0084347 | U185: 20220223SPN_01 | V185: Crew arrived on site and found a candled BA 22KV fuse post initial feeder trip.. Fuse failed to eject and candled. | Y185: 18
A186: 17 | B186: 149 | C186: 2022-02-21 | D186: 13:51 | E186: -37.70622149 | F186: 145.2259692 | G186: 310 State Route 9, Kangaroo Ground VIC 3097, Australia | H186: 925600 | I186: ELM32 | J186: 12.7kV AC (SWER) | K186: RURAL SHORT | L186: - fuse (boric acid) | M186: single wire earth return (SWER) | N186: Otherwise started by a distribution system | O186: within electric line construction area | P186: 19.8 | Q186: Low-moderate | R186: 0.2 | S186: 3.96 | T186: E0084379 | U186: 20220223SPN_03 | V186: Crew arrived on site and found a candled BA fuse.. BA fuse failed to eject and candled. | Y186: 19
A187: 17 | B187: 150 | C187: 2022-02-22 | D187: 18:53 | E187: -37.91713124 | F187: 145.2561207 | G187: 48 Jamieson Ave, Rowville VIC 3178, Australia | H187: 5707612 | I187: FGY12 | J187: 22kV AC | K187: URBAN | L187: - transformer (kiosk mounted) | M187: three phase | N187: Started in or originated from a distribution system | O187: LBRA only | P187: 0.2 | Q187: High | R187: 0.5 | S187: 0.1 | T187: E0084411 | U187: 20220223SPN_05 | V187: CEOT Received a call that Jamieson Dandelion Kiosk substation is on fire. They Immediately shut down power. Isolated affected apparatus and restored supply to unaffected area. . Electrical breakdown caused the fire. | Y187: 20
A188: 17 | B188: 151 | C188: 2022-02-23 | D188: 15:40 | E188: -37.95724 | F188: 145.53015 | G188: 55-105 Harewood Park Rd, Gembrook VIC 3783, Australia | H188: 416080 | I188: OFR23 | J188: Low voltage AC (<1kV) | K188: RURAL LONG | L188: - switch (disconnector/isolator) | M188: three phase | N188: Started in or originated from a distribution system | O188: HBRA only | P188: 1 | Q188: Low-moderate | R188: 0.2 | S188: 0.2 | T188: E0084436 | U188: 20220224SPN_01 | V188: A faulty LV isolator line side on the red phase heated up and caused a 250 meter square ground fire.. Electrical breakdown caused the fire.
A189: 17 | B189: 152 | C189: 2022-03-01 | D189: 22:33 | E189: -36.96623608 | F189: 145.7878761 | G189: 656 Ancona Rd, Ancona VIC 3715, Australia | H189: 5740900 | I189: MSD2 | J189: 12.7kV AC (SWER) | K189: RURAL LONG | L189: - fuse (boric acid) | M189: single wire earth return (SWER) | N189: Started by lightning striking a distribution system or a part of a distribution system | O189: within area delineated on plan LEGL./16-354 | P189: 4.6 | Q189: Low-moderate | R189: 0.2 | S189: 0.92 | T189: E0084549 | U189: 20220303SPN_01 | V189: Crew arrived on site and found a candled BA fuse that was hit by lightening.. BA fuse failed to eject and candled.
A190: 17 | B190: 153 | C190: 2022-03-04 | D190: 17:42 | E190: -38.076186 | F190: 146.610954 | G190: Gippsland Plains Rail Trail, Toongabbie VIC 3856, Australia | H190: 2601709 | I190: TGN31 | J190: 22kV AC | K190: RURAL LONG | L190: - dropper / bridge | M190: three phase | N190: Started in or originated from a distribution system | O190: HBRA only | P190: 1 | Q190: Low-moderate | R190: 0.2 | S190: 0.2 | T190: E0084674 | U190: 20220307SPN_01 | V190: CFA called in and stated a ground fire at pole 2601709. A bridge on the center phase failed causing a 350 meter square grass fire. The 7/104 connection failed at sleeve between ally conductor Connection.. A connection failure and breakdown caused the fault.
A191: 17 | B191: 154 | C191: 2022-03-07 | D191: 6:24 | E191: -37.17657898 | F191: 145.048511 | G191: 125 Kennys Ln, Broadford VIC 3658, Australia | H191: 4717642 | I191: SMR23 | J191: 22kV AC | K191: RURAL SHORT | L191: - fuse (boric acid) | M191: single phase | N191: Started by lightning striking a distribution system or a part of a distribution system | O191: within area delineated on plan LEGL./16-354 | P191: 4.6 | Q191: Low-moderate | R191: =IF(Q191="","",IF(Q191="No forecast",0.1,IF(Q191="Low-moderate",0.2,IF(Q191="High",0.5,IF(Q191="Very high",1,IF(Q191="Severe",2,IF(Q191="Extreme",3.5,5))))))) -> 0.2 | S191: =IF(OR(P191="",R191=""),"",IF(AND(O191="within electric line construction area",Q191="No forecast"),1,P191*R191)) -> 0.92 | T191: E0084682 | U191: 20220307SPN_02 | V191: Crew attended site and found a BA fuse that failed to eject and candled. Fault caused by lightening.. BA fuse failed to eject and candled.
A192: 17 | B192: 155 | C192: 2022-03-07 | D192: 23:58 | E192: -38.11242282 | F192: 145.6854815 | G192: 270 Fourteen Mile Rd, Garfield VIC 3814, Australia | H192: 514791 | I192: WGL12 | J192: 22kV AC | K192: RURAL LONG | L192: - overhead conductor (bare; steel) | M192: single phase | N192: Started in or originated from a distribution system | O192: HBRA only | P192: 1 | Q192: Low-moderate | R192: 0.2 | S192: 0.2 | T192: E0084707 | U192: 20220308SPN_01 | V192: An old 22KV O/H conductor failed and broke dropping to the ground and caused a 950 meter square ground fire. Zone sub protection tripped and 1 BA fuse blew. Conductor failure was due to age and corrosion. . Age and Corrosion caused the conductor to fail and break.
A193: 17 | B193: 156 | C193: 2022-03-13 | D193: 21:8 | E193: -38.32297121 | F193: 145.5888478 | G193: 5575 S Gippsland Hwy, Lang Lang VIC 3984, Australia | H193: 515226 | I193: LLG13 | J193: 12.7kV AC (SWER) | K193: RURAL SHORT | L193: - fuse (boric acid) | M193: single wire earth return (SWER) | N193: Otherwise started by a distribution system | O193: within area delineated on plan LEGL./16-354 | P193: 4.6 | Q193: Low-moderate | R193: 0.2 | S193: 0.92 | T193: E0084986 | U193: 20220315SPN_01 | V193: Crew arrived on site and found a candled fuse. No ground fire.. BA fuse failed to eject and candled. No cause of the fault was found.
A194: 17 | B194: 157 | C194: 2022-03-14 | D194: 17:31 | E194: -38.02276699 | F194: 145.833361 | G194: 121 Tonkin Rd, Labertouche VIC 3816, Australia | H194: 596838 | I194: WGL24 | J194: 22kV AC | K194: RURAL LONG | L194: - fuse (EDO fuse) | M194: single phase | N194: Started by lightning striking a distribution system or a part of a distribution system | O194: HBRA only | P194: 1 | Q194: Low-moderate | R194: 0.2 | S194: 0.2 | T194: E0084991 | U194: 20220316SPN_01 | V194: Crew arrived on site and found a candled EDO fuse. The fault was caused by lightening but the fuse failed to eject.. Lightening seemed to be the cause of the fault but the EDO fuse failed to eject and candled.
A195: 17 | B195: 158 | C195: 2022-03-15 | D195: 0:7 | E195: -38.43760102 | F195: 145.677768 | G195: 885 Sheepways Rd, Krowera VIC 3945, Australia | H195: 2008109 | I195: LGA23 | J195: 22kV AC | K195: RURAL LONG | L195: - fuse (boric acid) | M195: three phase | N195: Otherwise started by a distribution system | O195: HBRA only | P195: 1 | Q195: Low-moderate | R195: 0.2 | S195: 0.2 | T195: E0084993 | U195: 20220316SPN_02 | V195: Crew arrived on site and found a candled fuse that failed to eject.. BA fuse failed to eject and candled
A196: 17 | B196: 159 | C196: 2022-03-15 | D196: 7:1 | E196: -38.46342586 | F196: 145.2106261 | G196: 183-189 Justice Rd, Cowes VIC 3922, Australia | H196: 5789450 | I196: PHI12 | J196: Low voltage AC (<1kV) | K196: RURAL SHORT | L196: - lamps (minor road) | M196: single phase | N196: Started in or originated from a distribution system | O196: LBRA only | P196: 0.2 | Q196: Low-moderate | R196: 0.2 | S196: 0.04 | T196: E0084998 | U196: 20220316SPN_03 | V196: Crew arrived on site and found a street light head had caught fire.. Electrical breakdown caused the street light to catch fire.
A197: 17 | B197: 160 | C197: 2022-03-20 | D197: 16:21 | E197: -37.649599 | F197: 145.171415 | G197: 410 Glenhaven Rd, Diamond Creek VIC 3089, Australia | H197: 929322 | I197: ELM26 | J197: 22kV AC | K197: RURAL SHORT | L197: - overhead conductor (bare; steel) | M197: single phase | N197: Started by any tree, or part of a tree, falling upon or coming into contact with a distribution system | O197: within area delineated on plan LEGL./16-354 | P197: 4.6 | Q197: Low-moderate | R197: 0.2 | S197: 0.92 | T197: E0085220 | U197: 20220321SPN_02 | V197: Tree fell on 22KV open wire conductors bringing the conductor to the ground causing a 30M X 10M ground fire. ACR operated.. Eucalypt main leader has failed on edge of road coming into contact with the conductors. The weight of the tree has pulled the conductor from the pole and damaging the pole. The sparks from the pole has ignited a small fire which was bought under control very quickly. The double leader was bifurcated with decay and poor structure leading to failure
A198: =COUNTA(C198:O198,Q198,T198:V198) -> 17 | B198: 161 | C198: 2022-03-20 | D198: 22:54 | E198: -37.81989827 | F198: 145.3097418 | G198: Southfork Dr/Canterbury Rd, Kilsyth VIC 3137, Australia | H198: 1207558 | I198: CYN13 | J198: 22kV AC | K198: URBAN | L198: - overhead conductor (bare; aluminium core steel reinforced) | M198: three phase | N198: Started by any person, bird, reptile or other animal coming into contact with a distribution system | O198: LBRA only | P198: 0.2 | Q198: Low-moderate | R198: 0.2 | S198: 0.04 | T198: E0085221 | U198: 20220321SPN_01 | V198: A possum flashed over to a concrete pole and caused a fire at the base of the pole. Pole looks alright. burn mark on arm. Fire 5 x 5 approx. Protection did not operate.. A possum caused a flash over causing the ground fire.
A199: =COUNTA(C199:O199,Q199,T199:V199) -> 17 | B199: 162 | C199: 2022-03-26 | D199: 7:58 | E199: -36.51754701 | F199: 146.641328 | G199: 334 McIlroy Rae Rd, Gapsted VIC 3737, Australia | H199: 4500150 | I199: MYT12 | J199: 22kV AC | K199: RURAL LONG | L199: - fuse (boric acid) | M199: three phase | N199: Otherwise started by a distribution system | O199: within area delineated on plan LEGL./16-354 | P199: 4.6 | Q199: Low-moderate | R199: 0.2 | S199: 0.92 | T199: E0085332 | U199: 20220328SPN_01 | V199: Crew attended site and found a candled fuse on the blue phase.. BA fuse failed to eject and candled.
A200: 17 | B200: 163 | C200: 2022-03-26 | D200: 16:36 | E200: -38.18665801 | F200: 145.391725 | G200: 310 Tooradin Station Rd, Dalmore VIC 3981, Australia | H200: 516506 | I200: LLG14 | J200: 22kV AC | K200: RURAL SHORT | L200: - measurement transformer (voltage transformer) | M200: three phase | N200: Started by lightning striking a distribution system or a part of a distribution system | O200: within area delineated on plan LEGL./16-354 | P200: 4.6 | Q200: Low-moderate | R200: 0.2 | S200: 0.92 | T200: E0085333 | U200: 20220328SPN_02 | V200: The fault crew arrived on site at a pole top HV cap bank to find the voltage transformer had failed, with evidence of a 60 meter square ground fire beneath it. The fire was out when they arrived. Possible cause was lightening. . A cap bank failed causing a ground fire. Lightening seems to be the cause.
A201: 17 | B201: 164 | C201: 2022-03-28 | D201: 17:34 | E201: -38.01053304 | F201: 145.2794399 | G201: 18 Glenburn Dr, Hallam VIC 3803, Australia | H201: 5642680 | I201: HPK12 | J201: Low voltage AC (<1kV) | K201: URBAN | L201: - LV pillar | M201: three phase | N201: Started by any other thing forming part of or coming into contact with a distribution system | O201: LBRA only | P201: 0.2 | Q201: Low-moderate | R201: 0.2 | S201: 0.04 | T201: E0085347 | U201: 20220329SPN_01 | V201: A Car hit an LV electrical pillar causing small 1 meter ground fire. The fire was out on arrival and supply was still on. Its unclear if the car started the fire or damage to the pillar caused the fire.. A car had hit a pillar causing a 1 meter ground fire.
A202: 17 | B202: 165 | C202: 2022-03-31 | D202: 14:10 | E202: -37.73452601 | F202: 145.742557 | G202: 515 Woods Point Rd, East Warburton VIC 3799, Australia | H202: 1408366 | I202: WYK13 | J202: 22kV AC | K202: RURAL SHORT | L202: - fuse (boric acid) | M202: three phase | N202: Otherwise started by a distribution system | O202: within area delineated on plan LEGL./16-354 | P202: 4.6 | Q202: Low-moderate | R202: 0.2 | S202: 0.92 | T202: E0085463 | U202: 20220404SPN_01 | V202: Crew arrived on site and found a candled BA fuse.. BA fuse failed to eject and candled.
A203: 17 | B203: 166 | C203: 2022-03-31 | D203: 20:36 | E203: -36.05363899 | F203: 146.672522 | G203: 2380 Murray Valley Hwy, Barnawartha VIC 3688, Australia | H203: 5210039 | I203: BWA23 | J203: 22kV AC | K203: RURAL SHORT | L203: - fuse (boric acid) | M203: three phase | N203: Otherwise started by a distribution system | O203: within area delineated on plan LEGL./16-354 | P203: 4.6 | Q203: High | R203: 0.5 | S203: 2.3 | T203: E0085477 | U203: 20220404SPN_02 | V203: Crew arrived on site and found a candled BA fuse. There was a 300 meter square ground fire that was extinguished on the crews arrival. BA fuse failed to eject and caused a ground fire.
A204: 17 | B204: 167 | C204: 2022-04-01 | D204: 1:37 | E204: -37.94563401 | F204: 145.463259 | G204: 76 Beaconsfield-Emerald Rd, Emerald VIC 3782, Australia | H204: 419775 | I204: BGE23 | J204: 22kV AC | K204: RURAL SHORT | L204: - fuse (boric acid) | M204: single phase | N204: Otherwise started by a distribution system | O204: within area delineated on plan LEGL./16-354 | P204: =IF(O204="","",IF(O204="LBRA only",0.2,IF(O204="HBRA only",1,IF(O204="within electric line construction area",19.8,IF(O204="within area delineated on plan LEGL./16-354",4.6,""))))) -> 4.6 | Q204: High | R204: 0.5 | S204: 2.3 | T204: E0085478 | U204: 20220404SPN_03 | V204: Crew arrived on site and found a candled BA fuse and a dead possum at the base of the pole. No ground fire.. BA fuse failed to eject and candled. A possum was the cause of the fault.
A205: 17 | B205: 168 | C205: 2022-04-05 | D205: 14:49 | E205: -37.82570299 | F205: 147.580859 | G205: 320 Dockertys Rd, Wy Yung VIC 3875, Australia | H205: 1610482 | I205: BDL44 | J205: 22kV AC | K205: RURAL LONG | L205: - fuse (boric acid) | M205: single phase | N205: Started by any person, bird, reptile or other animal coming into contact with a distribution system | O205: within area delineated on plan LEGL./16-354 | P205: 4.6 | Q205: Low-moderate | R205: 0.2 | S205: 0.92 | T205: E0086030 | U205: 20220406SPN_01 | V205: The crew arrived on site and found a candled fuse. The initial fault was caused by a bird.. BA fuse failed to eject and candled.
A206: 17 | B206: 169 | C206: 2022-04-07 | D206: 9:53 | E206: -37.26340751 | F206: 147.7212113 | G206: 6881-6883 Great Alpine Rd, Swifts Creek VIC 3896, Australia | H206: 1602714 | I206: BDL44 | J206: 22kV AC | K206: RURAL LONG | L206: - overhead conductor (bare; aluminium core steel reinforced) | M206: three phase | N206: Started in or originated from a distribution system | O206: within electric line construction area | P206: 19.8 | Q206: Low-moderate | R206: 0.2 | S206: 3.96 | T206: E0086056 | U206: 20220408SPN_01 | V206: REFCL Primary Fault throw testing was being performed on BDL43, when HV UGC head failed on BDL44 at lis 1602714 Cassiliis Rd, Swifts Creek. Flames were reported on the pole. Zone sub feeder tripped to lockout. Cable insulation was burnt and damaged. . REFCL testing stressed the conductor insulation causing it to breakdown and cause flames on cable head.
A207: 17 | B207: 170 | C207: 2022-04-13 | D207: 9:19 | E207: -37.00671802 | F207: 148.266723 | G207: 7691B Limestone Black Mountain Rd, Wulgulmerang VIC 3885, Australia | H207: 1904154 | I207: BDL41 | J207: 22kV AC | K207: RURAL LONG | L207: - fuse (boric acid) | M207: single phase | N207: Started by any person, bird, reptile or other animal coming into contact with a distribution system | O207: within area delineated on plan LEGL./16-354 | P207: 4.6 | Q207: Low-moderate | R207: 0.2 | S207: 0.92 | T207: E0086101 | U207: 20220418SPN_02 | V207: Crew found a candled BA fuse. The fault was caused by a bird. No ground fire.. BA fuse failed to eject and candled
A208: =COUNTA(C208:O208,Q208,T208:V208) -> 17 | B208: 171 | C208: 2022-04-13 | D208: 11:10 | E208: -37.37229601 | F208: 145.03898 | G208: 6 Baden Dr, Heathcote Junction VIC 3758, Australia | H208: 912174 | I208: KLO14 | J208: 22kV AC | K208: RURAL LONG | L208: - fuse (boric acid) | M208: single phase | N208: Otherwise started by a distribution system | O208: within area delineated on plan LEGL./16-354 | P208: 4.6 | Q208: Low-moderate | R208: 0.2 | S208: 0.92 | T208: E0086096 | U208: 20220418SPN_01 | V208: Crew arrived on site and found a candled BA fuse. BA fuse failed to eject and candled, Cause of the fault is unknown.
A209: =COUNTA(C209:O209,Q209,T209:V209) -> 17 | B209: 172 | C209: 2022-04-14 | D209: 12:21 | E209: -38.63876499 | F209: 146.388273 | G209: 45 Agnes River Rd, Hazel Park VIC 3966, Australia | H209: 2013288 | I209: FTR12 | J209: 22kV AC | K209: RURAL LONG | L209: - pole (concrete) | M209: three phase | N209: Started by any other thing forming part of or coming into contact with a distribution system | O209: HBRA only | P209: 1 | Q209: Low-moderate | R209: 0.2 | S209: 0.2 | T209: E0086114 | U209: 20220418SPN_04 | V209: POLE 2013288 -WAS BACKED OVER BY A TRUCK AND IS ON THE GROUND, AND CAUSED A 400 METER SQUARE GROUND FIRE. acr TRIPPED TO LOCKOUT. DRIVER, ADRIAN PYKE - 0409 097 489 - LIC: 083600337 PYKE CARTAGE - REGO XV80CJ TRUCK AND DOG - MAC TRIDENT 40M X 10 M GRASS FIRE - CFA ATTENDED. Truck after dumping a load has caught the pole stay wire causing the pole to snap and fall to the ground.
A210: 17 | B210: 173 | C210: 2022-04-16 | D210: 3:6 | E210: -38.05530499 | F210: 145.389594 | G210: 2 Whiteside Rd, Officer VIC 3809, Australia | H210: 502026 | I210: OFR23 | J210: 22kV AC | K210: RURAL LONG | L210: - fuse (EDO fuse) | M210: three phase | N210: Otherwise started by a distribution system | O210: HBRA only | P210: 1 | Q210: Low-moderate | R210: 0.2 | S210: 0.2 | T210: E0086119 | U210: 20220418SPN_05 | V210: Crew arrived on site and found a candled EDO fuse. No ground fire.. EDO fuse failed to eject and candled.
... 12 more rows

Sheet 3. Systems and Audit
B1: =IF(Cover!D27="","[DNSP Name]", Cover!D27) -> AusNet Services
B2: F-factor data reporting
B3: =IF(Cover!D33="","[Year]",Cover!D33) -> 2021/22
B6: Instructions:
B8: =IF(Cover!D27="","[DNSP Name] must provide:", CONCATENATE(Cover!D27," must provide:")) -> AusNet Services must provide:
B10: Table 4 - Information or reporting systems
B11: (1) Name of any IT system used to collect fire start data or fault event data - i.e. SCADA system, or fault reporting system
B12: (2) Whether the fire recording or fault recording process has been audited or complies with a relevant Australian or industry standard - Yes or No
B13: (3) List any relevant Australian or industry standards that the fire recording or fault recording process complies with
B14: (4) Whether the data entered into or removed from the IT system has been audited - Yes or No
B17: Table 4: Information or reporting systems
B19: Information or reporting systems | C19: Name | D19: System Audited | E19: Relevant Standards
B20: System 1 | C20: Poweron (OMS) | D20: Yes | E20: ISO 9001 ISO55000 Electricity Safey (Bushfire Mitigation) Regulations Electricity Safety (Management) Regulations
B21: System 2 | C21: ENABLON | D21: Yes
B22: System 3 | C22: Smallworld GIS (SDME) /SAP | D22: Yes
B23: System 4 | C23: EM-COP | D23: Unknown | E23: https://scc.em.vic.gov.au/cgi-bin/scc/fdrhistory/home
B24: System 5
B25: System 6
B26: System 7
B27: System 8
B29: The SGSPAA Internal Audit function undertakes a programme of work in accordance with the SGSPAA Group Internal Audit Plan. This internal audit activity covers elements of the systems and process used for capturing, recording and maintaining fire start data.
